Cogmind - Beta 17 @@@ ROGUE MODE // 2026.06.26 @ 14:01:33 Player: szymekc Result: Heading to fleet! Performance ------------- Evolutions (9) 4500 Regions Visited (27) 5400 Robots Destroyed (450) 2250 Value Destroyed (23371) 23371 Prototype IDs (132) 2640 Alien Tech Used (9) 1800 Bonus (37641) 37641 TOTAL SCORE: 77602 Bonus ------- High Alert Combat Kills 5299 Follower Combat Kills 2627 Prayed to X0-1V1 5000 Major X0-1V1 Interference 13950 Entered Garrisons 200 Network Hubs Disabled 400 Registered with UFD 300 Met Optimus in HQ 500 Met Imprinter 300 Met Zhirov 300 Built Enhanced Grunts 300 A7 Reached Mainframe 300 Met R17 at Cetus 500 Used Core Reset Matrix 3000 Met R17 at Research 2000 Scanned by Researcher 500 Pursued by Intercept 500 Win 3000 Friendly Fire -1335 Cogmind --------- Core Integrity 56/1700 Matter 293/300 Energy 99/100 System Corruption 0% +Membrane Temperature Cool (0) Movement Core (50) Location To Fleet Rendezvous Parts ------- > --- POWER (3) -------- (None) > --- PROPULSION (11) -- Improved Gyrokinetic Inverter (fused) Improved Gyrokinetic Inverter (fused) > --- UTILITY (4) ------ Self-contained Transmogrifier Self-contained Transmogrifier > --- WEAPON (8) ------- (None) > --- INVENTORY (6) ---- Light Antimatter Reactor Femtoactuators Femtoactuators Peak State ------------ > --- POWER ------------ Improved Fusion Compressor Micro Antimatter Reactor Zero-point Reactor > --- PROPULSION ------- Enhanced Armored Leg Myomer Leg Shield Leg Advanced Myomer Leg Advanced Myomer Leg Experimental Flexi-carbon Leg Experimental Myomer Leg Experimental Biometal Leg Experimental Biometal Leg Experimental Biometal Leg > --- UTILITY ---------- Huge Storage Unit Experimental Reaction Control System Self-contained Transmogrifier Self-contained Transmogrifier X0-1V1's Piety Tracker > --- WEAPON ----------- Cooled Nova Cannon Enhanced Hardcell Cannon Compact Linear Accelerator Compact Linear Accelerator Compact Linear Accelerator Compact Linear Accelerator > --- INVENTORY -------- Micro Antimatter Reactor Light Quantum Reactor Light Quantum Reactor Flexi-carbon Leg Flexi-carbon Leg High-density Centrium Leg 2N-1CE's Frost Array Advanced Coolant Injector Experimental Coolant Injector Compact Matter Pod Experimental Core Analyzer Femtoactuators Experimental Actuator Array Experimental EM Shield Dimensional Node Initializer Transdimensional Reconstructor Transdimensional Reconstructor Transdimensional Reconstructor High-powered Transdimensional Reconstructor Core Reset Matrix Heavy Quantum Rifle Advanced KE Penetrator Enhanced Hardcell Cannon Compact Linear Accelerator Gamma Bomb Array Molecular Scythe [Rating: 238] Favorites ----------- Power Fission Core Engine Subdweller Power Source Power Core Fission Core Reactor Light Antimatter Reactor Propulsion Light Treads Treads Light Treads Leg Medium Armored Exoskeleton Wheel Subdweller Monowheel Hover Unit Combat Antigrav System Flight Unit Nuclear Pulse Thruster Utility Self-contained Transmogrifier Device Self-contained Transmogrifier Storage Huge Storage Unit Processor Experimental Core Analyzer Hackware Experimental System Shield Protection Experimental Weapon Shielding Weapon Compact Linear Accelerator Energy Gun Heavy Dispersion Rifle Energy Cannon Particle Cannon Ballistic Gun Advanced KE Penetrator Ballistic Cannon Compact Linear Accelerator Launcher Guided Micro-nuke Launcher Special Weapon Experimental Remote Datajack Impact Weapon Thunder Hammer Slashing Weapon Axe Piercing Weapon Plasma Lance Special Melee Weapon Chaos Jack Build | -11 -10 -10 -8 -8 -6 -6 -6 -6 -5 -5 -5 -5 -5 -5 -4 -4 -4 -4 -3 -3 -3 -2 -2 -2 -2 -1 -1 ------- Run | Yrd Mat Sub Rec Scr Fac Low Low Zio Pro Fac Ext Cet Arc Hub Fac Upp Upp Zhi Pro Res Qua Res Tes Sec Gar Acc Com Slots Evolved 18 | . . . . . 8 . . . . 2 . . . . 2 . . . . 2 . 2 . . . 2 . Power 1 | . . . . . . . . . . . . . . . . . . . . 1 . . . . . . . Propulsion 8 | . . . . . 4 . . . . 1 . . . . 1 . . . . 1 . 1 . . . . . Utility 2 | . . . . . 2 . . . . . . . . . . . . . . . . . . . . . . Weapon 7 | . . . . . 2 . . . . 1 . . . . 1 . . . . . . 1 . . . 2 . Parts Attached 384 | 7 10 10 3 4 37 6 5 1 . 8 5 3 . 24 25 1 1 9 9 101 27 5 25 20 2 31 5 Power 52 | 1 . 3 . 3 2 1 2 . . . 1 1 . 4 2 . . . . 21 1 1 2 2 . 4 1 Engine 4 | 1 . 3 . . . . . . . . . . . . . . . . . . . . . . . . . Core 9 | . . . . 3 2 1 2 . . . . . . . 1 . . . . . . . . . . . . Reactor 39 | . . . . . . . . . . . 1 1 . 4 1 . . . . 21 1 1 2 2 . 4 1 Propulsion 96 | 2 1 4 2 1 13 . . . . 1 . . . 5 7 . . . . 22 12 3 5 5 . 13 . Treads 17 | 2 . 1 1 1 5 . . . . . . . . . . . . . . 1 . . 2 2 . 2 . Leg 49 | . . . . . 6 . . . . 1 . . . 5 7 . . . . 12 5 3 2 3 . 5 . Wheel 5 | . 1 3 1 . . . . . . . . . . . . . . . . . . . . . . . . Hover 11 | . . . . . 2 . . . . . . . . . . . . . . . 4 . . . . 5 . Flight 14 | . . . . . . . . . . . . . . . . . . . . 9 3 . 1 . . 1 . Utility 109 | 2 3 1 . . 13 3 3 . . 2 2 1 . 9 9 . 1 7 5 21 5 1 7 4 . 7 3 Device 90 | 2 2 1 . . 10 2 3 . . 2 2 1 . 9 7 . 1 5 5 17 3 1 6 3 . 7 1 Storage 6 | . 1 . . . 1 . . . . . . . . . 1 . . 2 . . 1 . . . . . . Processor 5 | . . . . . . . . . . . . . . . 1 . . . . 3 . . . 1 . . . Hackware 4 | . . . . . 1 . . . . . . . . . . . . . . . 1 . . . . . 2 Protection 4 | . . . . . 1 1 . . . . . . . . . . . . . 1 . . 1 . . . . Artifact . | . . . . . . . . . . . . . . . . . . . . . . . . . . . . Weapon 127 | 2 6 2 1 . 9 2 . 1 . 5 2 1 . 6 7 1 . 2 4 37 9 . 11 9 2 7 1 Energy Gun 32 | 1 1 . . . . . . . . 3 1 1 . 2 3 1 . 1 3 8 2 . 2 . . 2 1 Energy Cannon 23 | . 2 1 . . 5 1 . . . . . . . . 1 . . . . 4 . . 3 1 2 3 . Ballistic Gun 31 | 1 2 . . . 3 1 . . . 1 . . . 3 . . . . . 15 . . 1 4 . . . Ballistic Cannon 16 | . . . . . . . . . . . . . . . . . . . . 5 3 . 4 3 . 1 . Launcher 6 | . . 1 . . 1 . . . . 1 . . . . . . . . 1 1 1 . . . . . . Special Weapon 4 | . 1 . . . . . . . . . 1 . . 1 . . . 1 . . . . . . . . . Impact Weapon . | . . . . . . . . . . . . . . . . . . . . . . . . . . . . Slashing Weapon 9 | . . . 1 . . . . 1 . . . . . . 2 . . . . . 3 . 1 . . 1 . Piercing Weapon 5 | . . . . . . . . . . . . . . . 1 . . . . 4 . . . . . . . Special Melee Weapon 1 | . . . . . . . . . . . . . . . . . . . . . . . . 1 . . . Unidentified Prototypes 51 | . 1 . . . 4 1 . . . 2 . . . 3 3 . . 4 1 13 5 1 6 2 . 5 . Corrupted Parts 6 | . . 1 . . 2 . . . . . . . . 3 . . . . . . . . . . . . . System Corruption 33 | . . 6 . . 6 . . . . . . . . 21 . . . . . . . . . . . . . Parts Lost 135 | . 1 7 . . 12 1 2 . . 1 . 1 . 12 6 . . . 4 32 4 . 5 24 1 6 16 Power 19 | . . 2 . . . . 1 . . . . . . 3 . . . . . 6 1 . . 4 . 1 1 Propulsion 40 | . . 3 . . 6 . . . . . . . . 1 3 . . . . 10 2 . 3 4 1 1 6 Utility 19 | . . 1 . . 3 . 1 . . . . 1 . 1 1 . . . 1 1 . . . 4 . 2 3 Weapon 57 | . 1 1 . . 3 1 . . . 1 . . . 7 2 . . . 3 15 1 . 2 12 . 2 6 Highest Loss Streak 16 | . 1 4 . . 3 1 1 . . 1 . 1 . 6 3 . . . 4 16 2 . 3 10 1 3 8 To Critical Strikes 4 | . . . . . . . . . . . . . . . . . . . . . . . . 4 . . . Average Backups 17 | 1 12 24 23 23 18 16 19 19 18 18 18 18 19 16 18 20 21 22 13 5 12 19 23 18 5 4 4 Power 1 | . 1 1 1 . . 1 1 1 1 1 1 1 2 . . 1 1 1 1 . . 1 2 1 . . . Propulsion 1 | . 1 3 5 4 1 2 4 3 2 2 1 1 1 1 . . 1 . . . 2 6 2 . . . . Utility 6 | . 5 6 4 6 7 5 5 5 4 3 4 7 6 5 7 11 11 12 7 4 5 6 8 7 2 2 3 Weapon 5 | 1 4 13 11 9 5 4 5 6 6 7 6 5 6 6 7 6 7 7 3 . . . 4 5 . 2 . Tool/Special . | . . . . . . . . . . . . . . . . . . . . . . . . . . . . Unused Backups 81 | . . 11 4 16 3 2 5 4 1 5 2 2 3 2 2 . . 2 7 2 1 1 2 2 1 . 1 Power 6 | . . . 1 2 1 . . . . . . 1 . . . . . . 1 . . . . . . . . Propulsion 13 | . . 1 . 2 . . 1 1 1 2 1 . . 2 . . . . . . . . 2 . . . . Utility 26 | . . 4 2 3 1 1 2 . . . 1 1 . . . . . 2 4 2 . 1 . 1 . . 1 Weapon 30 | . . 6 1 9 . 1 2 2 . 3 . . 2 . 1 . . . 2 . 1 . . . . . . Tool/Special 6 | . . . . . 1 . . 1 . . . . 1 . 1 . . . . . . . . 1 1 . . Average Slot Usage (%) 85 | . 99 99 100 97 94 83 81 87 85 78 84 73 80 83 85 91 82 80 69 79 85 91 89 61 24 63 72 Engine 3 | . 14 16 28 4 . 6 5 6 . . 3 2 1 . . . . . . . . . . . . . . Core 5 | . . . . 20 11 5 6 5 12 11 5 5 2 2 . . . . . . . . . . . . . Reactor 4 | . . . . . . . . . . . 1 2 5 6 7 10 10 10 8 9 13 12 10 6 . 4 6 Treads 6 | . 23 11 13 27 25 . . . . . . . . . . . . . . . . . . . 2 2 . Leg 18 | . . . . . 7 23 25 31 29 24 30 23 22 30 35 37 25 25 17 28 18 38 31 13 . 3 . Wheel 1 | . 4 20 14 . . . . . . . . . . . . . . . . . . . . . . . . Hover 1 | . . . . . . . . . . . . . 2 . . . . . . . 1 . . . . 18 31 Flight 1 | . . . . . . . . . . . . . 5 . . . . . . 1 11 . . 1 5 2 . Device 15 | . 16 13 14 14 18 19 17 18 18 15 15 15 16 15 14 15 15 13 17 16 13 12 12 13 15 18 14 Storage 6 | . 11 14 14 14 5 5 6 6 6 5 5 5 5 5 5 5 5 5 2 . 3 4 4 3 . . 1 Energy Gun 3 | . 10 . . . 5 . . 10 10 1 4 . 1 13 11 6 . . 7 2 2 4 2 . . 1 2 Energy Cannon 2 | . 6 20 7 . 2 1 . . . 4 9 . . . 1 . . . . 2 5 8 3 1 . 4 4 Ballistic Gun 4 | . 10 . . . 9 16 18 5 2 9 2 . . 3 3 1 . . . 8 . . . 1 . . . Ballistic Cannon 3 | . . . . . . . . . 1 . . 9 1 1 1 1 15 19 15 3 5 5 16 12 . 1 2 Launcher 2 | . . . . . . . . . . 3 3 5 13 1 1 9 2 . 1 2 . 4 1 . . 1 4 Slashing Weapon 2 | . . . 6 14 2 1 . 1 2 . . . . . 1 5 2 . . . 2 1 . 2 . . . Peak Build Rating 238 | 9 25 31 31 39 96 104 131 133 127 132 137 143 150 149 169 165 166 169 169 201 188 203 238 219 90 224 230 Average Rating 120 | 4 9 25 30 35 75 91 111 123 123 128 132 140 140 137 153 163 163 158 162 177 169 194 216 179 70 176 192 On Entrance 119 | . 9 25 31 31 39 96 97 131 123 121 130 136 142 139 140 163 164 165 169 167 177 185 203 212 73 62 221 Avg Prop Armor Cover (%) 9 | . 12 11 16 19 6 . . . 2 . . . 5 2 . . . . 14 7 4 2 3 40 41 17 2 Naked Turns . | . . . . . . . . . . . . . . . . . . . . . . . . . . . . Heaviest Build 217 | 10 94 97 95 104 133 86 122 127 120 130 139 143 145 156 145 160 160 172 196 133 192 202 217 217 3 118 111 Greatest Support 262 | 40 40 40 20 40 128 120 164 168 159 154 158 140 176 213 243 226 178 208 208 255 191 221 262 225 20 122 136 Greatest Overweight (x) 48 | . 9 9 4 4 1 . . 1 1 . . 1 48 1 . . . . 1 . 5 . 1 2 . 1 1 Average Overweight (x) . | . 3 4 4 2 . . . . . . . . 2 . . . . . . . . . . . . . . Largest Inventory Capacity 26 | 5 25 26 26 26 26 21 26 26 26 26 26 26 26 26 26 26 26 26 26 6 26 26 26 26 6 6 6 Average Capacity 22 | 5 22 25 26 26 23 21 24 26 26 26 26 26 26 26 26 26 26 26 16 6 23 26 26 24 6 6 6 Most Carried 26 | 3 25 26 26 26 25 21 26 26 26 26 26 26 26 26 26 25 26 26 25 6 20 26 26 25 6 6 6 Average Carried 20 | 1 12 24 25 25 21 18 23 25 25 25 25 25 25 22 24 23 24 25 15 5 12 23 24 18 5 5 4 Final Capacity 26 | 5 25 26 26 26 21 21 26 26 26 26 26 26 26 26 26 26 26 26 6 6 26 26 26 6 6 6 6 Final Carried 26 | 3 25 25 26 26 18 19 26 26 26 25 26 26 26 22 23 25 26 25 6 6 18 26 25 6 6 6 3 Transmogrified Parts 635 | . . . . . 23 19 30 29 30 13 30 8 71 42 45 13 10 7 14 101 47 7 36 30 3 16 11 Integrity Recovered 15321 | . . . . . 403 957 539 189 233 342 1009 236 566 2333 1500 193 255 158 452 1446 1183 42 1318 1788 38 18 123 Class Distribution -------------------- 23% | Hauler-Gunner 22% | Hauler-Mutant 12% | Commander-Gunner 10% | Hauler-Executioner 10% | Executioner 5% | Mutant Dominant Class ---------------- Mutant | -10/Materials Hauler-Mutant | -10/Subcaves Hauler-Mutant | -8/Recycling Hauler-Mutant | -8/Scraptown Scavenger-Gunner | -6/Factory Skirmisher | -6/Lower Caves Hauler-Gunner | -6/Lower Caves Hauler-Gunner | -6/Zion Hauler-Gunner | -5/Proximity Caves Hauler-Gunner | -5/Factory Commander-Gunner | -5/Extension Commander-Gunner | -5/Cetus Commander-Gunner | -5/Archives Hauler-Gunner | -5/Hub_04(d) Hauler-Gunner | -4/Factory Hauler-Gunner | -4/Upper Caves Hauler-Gunner | -4/Upper Caves Hauler-Gunner | -4/Zhirov Hauler-Executioner | -3/Proximity Caves Executioner | -3/Research Hauler-Executioner | -3/Quarantine Hauler-Executioner | -2/Research Hauler-Executioner | -2/Testing Alien-Executioner | -2/Section 7 Alien-Sprinter | -2/Garrison Alien-Mutant | -1/Access Alien-Executioner | -1/Command Resources | -11 -10 -10 -8 -8 -6 -6 -6 -6 -5 -5 -5 -5 -5 -5 -4 -4 -4 -4 -3 -3 -3 -2 -2 -2 -2 -1 -1 ----------- Run | Yrd Mat Sub Rec Scr Fac Low Low Zio Pro Fac Ext Cet Arc Hub Fac Upp Upp Zhi Pro Res Qua Res Tes Sec Gar Acc Com Matter Collected 21789 | 263 134 630 191 537 1557 946 1296 192 1340 503 430 226 318 1054 1044 47 340 421 531 4483 955 13 1891 1533 . 858 56 Remotely . | . . . . . . . . . . . . . . . . . . . . . . . . . . . . Salvage Created 23425 | 106 367 549 191 . 1600 1091 842 . 347 1569 1200 114 102 1812 2510 221 130 230 466 4203 1897 182 1707 969 . 939 81 Parts 1010 | 6 34 33 16 . 72 36 34 . 19 74 43 4 7 97 71 18 6 10 15 161 106 4 63 35 . 39 7 Haulers Intercepted 7 | . 1 . . . 1 . . . . 1 . . . 1 1 . . . . 2 . . . . . . . Recyclers Shooed 13 | 1 1 . 1 . 1 . . . . 2 . . . . 1 . . . . 3 1 . 1 . . 1 . Parts Field Recycled . | . . . . . . . . . . . . . . . . . . . . . . . . . . . . Retrieved Matter . | . . . . . . . . . . . . . . . . . . . . . . . . . . . . Parts Self-Destructed 138 | . . 19 . . . 29 28 . 23 . . . . . . 17 8 . 14 . . . . . . . . Prevented 20 | . . . . . . 9 . . 1 . . . . . . 1 . 9 . . . . . . . . . Parts Restored . | . . . . . . . . . . . . . . . . . . . . . . . . . . . . Kills | -11 -10 -10 -8 -8 -6 -6 -6 -6 -5 -5 -5 -5 -5 -5 -4 -4 -4 -4 -3 -3 -3 -2 -2 -2 -2 -1 -1 ------- Run | Yrd Mat Sub Rec Scr Fac Low Low Zio Pro Fac Ext Cet Arc Hub Fac Upp Upp Zhi Pro Res Qua Res Tes Sec Gar Acc Com Combat Hostiles Destroyed 337 | . 10 18 3 . 24 14 9 . 3 20 20 2 . 29 26 6 6 . 13 59 23 2 20 17 . 8 5 Melee 12 | . . . . . . . . . . 1 . . . . . . . . . 5 3 . 1 2 . . . Guns 131 | . 7 . . . 13 6 9 . 1 4 4 . . 21 17 2 . . 3 39 . . 4 1 . . . Cannons 95 | . 2 10 3 . 2 6 . . 2 4 6 2 . 1 2 . 6 . 8 9 13 . 11 5 . 3 . AOE 69 | . 1 8 . . 6 1 . . . 7 9 . . 5 4 4 . . 2 2 1 . 1 9 . 4 5 Classes Destroyed 31 | 2 6 3 . . 4 2 1 . 1 1 2 . . 1 . . . . 1 4 . . 2 1 . . . Worker 24 | . . . . . 5 . . . . . . . . 3 7 . . . . 1 2 . 4 1 . . 1 Builder 26 | . 1 . 1 . 1 . . . . 7 . . . 1 4 . . . . . 3 . 3 4 . 1 . Tunneler 5 | 2 . . . . 1 . . . . 1 . . . . . . . . . . . . . . . 1 . Hauler 7 | . 1 . . . 1 . . . . 1 . . . 1 1 . . . . 2 . . . . . . . Recycler 18 | 1 . . . . 2 . . . . 3 1 . . . 6 . . . . . 1 . 2 . . 2 . Mechanic 5 | . 1 . . . . . . . . . 1 . . . . . . . . . 1 . 1 . . . 1 Operator 15 | . 1 . . . . . . . . . . . 5 1 . . . . . 1 1 1 1 1 . 3 . Drone 1 | . . . . . . . . . . . . . . . . . . . 1 . . . . . . . . Turret 1 | . . 1 . . . . . . . . . . . . . . . . . . . . . . . . . Watcher 5 | . . . . . . . . . . . 1 1 . 1 . . . . . . 1 . . 1 . . . Swarmer 64 | . 6 2 . . 6 2 . . . 4 5 . . 7 6 4 4 . 2 11 . . . . . . 5 Grunt 109 | . 4 3 . . 5 8 6 . 3 6 8 . . 2 15 . 1 . 5 15 9 . 4 11 . 4 . Brawler 6 | . . . . . . 3 . . . . 1 . . 1 1 . . . . . . . . . . . . Duelist 7 | . . . . . . 1 . . . . 1 . . 1 1 . . . 1 . 1 . 1 . . . . Protector 1 | . . . . . . . . . . . . . . 1 . . . . . . . . . . . . . Researcher 2 | . . . . . . . . . . . . . . . . . . . . . . . . 2 . . . Sentry 26 | . . 1 3 . 1 1 1 . . 2 3 . . 3 . . 1 . . 6 . 2 . 1 . 1 . Demolisher 4 | . . . . . . . . . . . . . . . . . . . . 4 . . . . . . . Specialist 10 | . . . . . 4 . 2 . . 2 . . . 2 . . . . . . . . . . . . . Hunter 23 | . . . . . 5 . . . . 3 . . . 3 . . . . . 7 2 . 3 . . . . Programmer 45 | . . . . . 3 . . . . 2 1 . . 5 3 2 . . 4 . 11 . 8 4 . 2 . Heavy 1 | . . . . . . . . . . 1 . . . . . . . . . . . . . . . . . Behemoth 4 | . . . . . . . . . . . 1 . . 1 . . . . . 1 . . . . . 1 . Cetus Guard 1 | . . . . . . . . . . . . 1 . . . . . . . . . . . . . . . S7 Guard 1 | . . . . . . . . . . . . . . . . . . . . . . . . 1 . . . Enhanced Grunt 1 | . . . . . . . . . . . . 1 . . . . . . . . . . . . . . . Lightning 3 | . . . . . . . . . . . . . . 3 . . . . . . . . . . . . . Striker 13 | . . . . . . . . . . . . . . . . . . . . 11 . . 2 . . . . Executioner 3 | . . . . . . . . . . . . . . . . . . . . 3 . . . . . . . Alpha 7 1 | . . . . . . . . . . . . . . . . . . . . . . . 1 . . . . Fortress 1 | . . . . . . . . . . . . . . . . . . . . . . . 1 . . . . Subdweller 12 | . . 12 . . . . . . . . . . . . . . . . . . . . . . . . . Decomposer 1 | . . . . . . . 1 . . . . . . . . . . . . . . . . . . . . Tinkerer 1 | . . . . . . . 1 . . . . . . . . . . . . . . . . . . . . Thug 3 | . . . . . . . . . 2 . . . . . . . . . . 1 . . . . . . . Fireman 1 | . . . . . . . . . 1 . . . . . . . . . . . . . . . . . . Revision 1 | . . . . . . . . . . . . . . . . . . . . 1 . . . . . . . Best Kill Streak 15 | 2 4 8 2 . 6 8 4 . 1 9 7 1 2 5 15 4 6 . 6 6 9 1 8 10 . 4 6 Combat Bots Only 8 | . 3 5 2 . 5 8 4 . 1 5 5 1 . 5 5 4 6 . 6 6 4 1 5 7 . 3 5 Max Kills in Single Turn 5 | 1 3 3 1 . 2 2 3 . 1 4 3 1 2 5 5 4 2 . 2 2 2 1 2 4 . 2 3 Gunslinging 1 | . . . . . . . 1 . . . . . . . . . . . . 1 . . . . . . . Exploded 5 | . 1 3 . . 2 1 . . . 2 2 . . 5 4 4 . . 1 2 1 . 1 4 . 1 3 Melee 1 | . . . . . . . . . . 1 . . . . . . . . . 1 1 . 1 1 . . . Uniques/NPCs Destroyed . | . . . . . . . . . . . . . . . . . . . . . . . . . . . . Combat | -11 -10 -10 -8 -8 -6 -6 -6 -6 -5 -5 -5 -5 -5 -5 -4 -4 -4 -4 -3 -3 -3 -2 -2 -2 -2 -1 -1 -------- Run | Yrd Mat Sub Rec Scr Fac Low Low Zio Pro Fac Ext Cet Arc Hub Fac Upp Upp Zhi Pro Res Qua Res Tes Sec Gar Acc Com Hostile Shots Fired 3196 | . 49 85 12 . 205 143 53 . 40 122 42 35 . 377 175 10 60 . 106 487 154 11 191 453 46 137 203 Missed 968 | . 15 33 3 . 45 46 16 . 11 29 14 9 . 119 54 4 14 . 31 172 46 4 60 99 21 53 70 Deflected 4 | . . . . . . . . . 2 2 . . . . . . . . . . . . . . . . . Hits 2228 | . 34 52 9 . 160 97 37 . 29 93 28 26 . 258 121 6 46 . 75 315 108 7 131 354 25 84 133 Melee 37 | . . . . . . 1 . . . . . . . 3 2 . . . . 21 . . 10 . . . . Projectile 2191 | . 34 52 9 . 160 96 37 . 29 93 28 26 . 255 119 6 46 . 75 294 108 7 121 354 25 84 133 AOE 20 | . . . . . . . . . . . 1 . . 2 . . . . . 10 . . . . . . 7 Critical Strikes 153 | . . . 2 . 9 3 2 . 2 4 2 6 . 19 11 . 2 . 6 12 9 . 17 30 1 6 10 Part Disruptions 14 | . . . . . 8 . . . . . . . . . . . . . 3 . 1 . . 2 . . . Damage Taken 47578 | 40 299 842 136 . 2419 1565 601 . 633 1573 581 685 74 5487 2216 91 902 . 1309 7898 1925 217 3143 8799 595 1940 3608 Core 6142 | . 67 171 48 . 181 210 37 . 139 100 51 42 . 796 112 . 30 . 152 695 167 . 263 809 428 390 1254 Absorbed by Shields 1450 | . . . . . . . . . . . 216 122 . 126 . . . . 178 308 . . . 219 . . 281 Redirected to Shielding 143 | . . . . . . . . . . . . . . . . . . . . . . . . 143 . . . Ignored by Resistances 2903 | . . . . . 167 . 22 . . 126 9 . . 716 272 13 . . 317 40 292 . 315 160 5 158 291 Regen/Repaired (Parts) 58 | . . . . . . . . . . . . . . . . . . . . . 58 . . . . . . Core Remaining (%) 50 | 100 . . . 46 . . . . 83 . . . . 10 . . . . 76 . 77 . . . 11 . 3 Volleys Fired 1010 | 9 29 67 15 . 55 61 37 . 23 42 51 18 16 95 66 5 14 5 33 162 50 16 52 47 2 28 12 Largest 7 | 2 2 2 1 . 5 3 3 . 3 4 4 2 2 4 5 2 4 5 6 6 6 5 7 6 1 4 2 Hottest 570 | 60 136 136 68 . 230 144 101 . 284 329 337 116 116 376 413 121 194 256 362 448 570 377 490 366 120 392 152 Shots Fired 2775 | 18 57 96 15 . 140 161 112 . 47 92 119 33 22 329 235 11 46 17 85 594 105 31 193 165 2 36 14 Gun 1606 | 18 52 . . . 108 119 112 . 34 51 48 8 9 306 197 7 . . 16 456 11 5 26 21 . 1 1 Cannon 1077 | . 4 83 15 . 27 42 . . 13 30 54 24 11 22 38 . 46 16 63 136 86 22 164 138 2 30 11 Launcher 88 | . . 13 . . 5 . . . . 11 15 1 2 1 . 4 . . 6 2 8 4 3 6 . 5 2 Special 4 | . 1 . . . . . . . . . 2 . . . . . . 1 . . . . . . . . . Kinetic 1529 | 9 26 13 . . 73 119 112 . 32 38 15 24 11 106 70 4 46 16 63 440 34 6 125 138 . 7 2 Thermal 1004 | . 5 83 15 . 25 . . . 11 43 86 8 . 222 163 3 . . 7 146 55 10 65 21 2 24 10 Explosive 41 | . . . . . 5 . . . . 3 9 1 2 1 . . . . 6 1 . . . 6 . 5 2 Electromagnetic 197 | 9 26 . . . 37 42 . . 4 8 7 . 9 . 2 4 . . 9 6 16 15 3 . . . . Robot Hit Streak 29 | 4 9 16 9 . 10 8 6 . 7 10 10 8 5 11 29 11 5 4 4 15 9 7 19 10 . 6 3 Robot Miss Streak 12 | 2 3 2 1 . 10 4 4 . 4 3 3 3 3 12 5 1 3 2 7 6 3 2 5 6 . 3 2 Penetration Max 2 | . . . . . . 1 2 . 1 1 1 . . 1 1 . . . 1 1 1 . . 1 . . . Secondary Targets 32 | . 3 . . . 1 3 1 . . 1 . . . 7 4 . . . . 12 . . . . . . . Max Gunslinging Chain 2 | . 1 . . . 1 1 1 . . 1 . . . 1 1 . . . . 2 . . . . . . . Shots Hit Robots 1553 | 10 36 50 11 . 109 60 64 . 30 61 71 21 13 182 154 4 18 13 32 302 71 15 100 106 . 16 4 Core Hits 892 | 5 18 34 4 . 72 27 32 . 18 53 54 13 10 72 74 9 9 2 35 130 57 11 51 68 . 25 9 Critical Kills 66 | . . . . . 3 7 9 . 4 4 . . . 6 5 . . . 2 19 3 . 1 . . 3 . Critical Parts Destroyed 87 | . . . . . 1 6 10 . 1 8 . . . 12 12 . . 1 1 28 4 . . 1 . 2 . Critical Strikes 222 | . . . . . 7 15 19 . 5 12 . 1 1 29 28 . 1 2 8 61 9 1 6 10 . 7 . Burn 18 | . . . . . . . . . . . . . . 8 8 . . . . 2 . . . . . . . Meltdown 5 | . . . . . . . . . . 1 . . . . . . . . . 2 . . 1 . . 1 . Destroy 158 | . . . . . 5 14 19 . 5 6 . . . 19 19 . . 1 3 55 7 . . 1 . 4 . Blast 22 | . . . . . . . . . . . . 1 . 2 . . 1 . 5 1 . . 5 7 . . . Corrupt 3 | . . . . . . 1 . . . . . . 1 . . . . . . . . 1 . . . . . Smash 6 | . . . . . . . . . . 5 . . . . . . . 1 . . . . . . . . . Sever 9 | . . . . . 2 . . . . . . . . . 1 . . . . . 2 . . 2 . 2 . Impale 1 | . . . . . . . . . . . . . . . . . . . . 1 . . . . . . . Melee Attacks 208 | . . . 3 . 29 8 . 1 2 17 . . . 1 16 . 6 9 . 26 37 . 10 38 . 5 . Impact 26 | . . . . . . . . . . 17 . . . . . . . 9 . . . . . . . . . Slashing 141 | . . . 3 . 29 8 . 1 2 . . . . 1 14 . 6 . . 6 23 . 10 33 . 5 . Piercing 41 | . . . . . . . . . . . . . . . 2 . . . . 20 14 . . 5 . . . Sneak Attacks 36 | . . . 1 . 8 1 . . . 1 . . . 1 10 . . . . 1 1 . 5 7 . . . Combat Hostiles 3 | . . . . . . 1 . . . . . . . . 1 . . . . 1 . . . . . . . Follow-up Attacks 9 | . . . . . . . . . . 2 . . . . . . . . . 3 3 . . 1 . . . Martial Strikes 3 | . . . . . . . . . . 3 . . . . . . . . . . . . . . . . . Damage Inflicted 67473 | 132 570 1810 269 . 3573 1553 889 . 955 4091 4117 1119 1023 6544 5995 278 757 640 2417 10373 3913 589 6188 6738 . 1707 1233 Guns 23281 | 101 382 . . . 1456 367 889 . 775 1074 775 169 229 5750 3525 135 . . 458 5973 277 61 625 200 . 30 30 Cannons 21296 | . 63 901 205 . 500 745 . . 180 703 1325 745 471 222 377 . 757 253 924 3446 1705 376 3896 2893 . 514 95 Explosions 15390 | 29 99 909 . . 918 151 . . . 1722 1984 205 323 483 676 143 . . 1035 259 1009 152 992 2086 . 1111 1104 Melee 7149 | . . . 64 . 686 290 . . . 575 . . . 80 1219 . . 387 . 683 920 . 643 1559 . 43 . Ramming 357 | 2 26 . . . 13 . . . . 17 33 . . 9 198 . . . . 12 2 . 32 . . 9 4 Kinetic 24587 | 50 180 909 . . 958 367 889 . 554 819 246 745 471 1848 862 31 757 253 924 6856 989 168 2865 2690 . 115 41 Thermal 20203 | 29 162 901 205 . 461 151 . . 328 958 1910 169 132 4124 3704 104 . . 377 2455 879 83 1712 403 . 559 397 Explosive 9895 | . . . . . 804 . . . . 1235 1492 205 191 483 . . . . 1035 259 . . 333 2086 . 981 791 Electromagnetic 5282 | 51 202 . . . 651 745 . . 73 487 436 . 229 . 12 143 . . 81 108 1123 338 603 . . . . Impact 962 | . . . . . . . . . . 575 . . . . . . . 387 . . . . . . . . . Slashing 5673 | . . . 64 . 686 290 . . . . . . . 80 1219 . . . . 380 717 . 643 1551 . 43 . Piercing 514 | . . . . . . . . . . . . . . . . . . . . 303 203 . . 8 . . . Highest Corruption 51 | . 3 9 . . 9 9 13 . . 5 . . 11 51 6 . . . 6 5 8 . 4 4 . . . Average Corruption 8 | . 2 4 . . 5 9 10 . . 4 . . 11 27 4 . . . 3 2 5 . 2 4 . . . Corruption Purged . | . . . . . . . . . . . . . . . . . . . . . . . . . . . . Corruption Blocked . | . . . . . . . . . . . . . . . . . . . . . . . . . . . . Effects 325 | . 13 14 . . 32 42 30 . . 5 . . 23 89 8 . . . 7 11 34 . 17 . . . . Message Errors 71 | . 4 2 . . 4 14 7 . . 1 . . 8 11 5 . . . 2 2 8 . 3 . . . . Matter Fused 67 | . 1 4 . . 4 10 8 . . 2 . . 7 12 1 . . . 2 4 8 . 4 . . . . Heat Flow Errors 41 | . 3 1 . . 6 5 2 . . . . . 4 12 1 . . . . 3 4 . . . . . . Energy Discharges 36 | . 1 1 . . 4 7 3 . . 1 . . 1 10 . . . . . 1 4 . 3 . . . . Parts Rejected 6 | . . 1 . . 1 . 1 . . . . . . 1 . . . . 1 . 1 . . . . . . Parts Fused 2 | . . . . . . . . . . . . . . 1 . . . . . . 1 . . . . . . Data Loss (minor) 31 | . 2 2 . . 7 1 2 . . . . . 2 7 1 . . . 1 . 3 . 3 . . . . Data Loss (major) 12 | . . 2 . . 1 . 2 . . . . . . 3 . . . . . . 2 . 2 . . . . Misfires 14 | . 1 1 . . 1 2 2 . . . . . . 4 . . . . . 1 2 . . . . . . Alerts 13 | . 1 . . . 3 . 2 . . . . . 1 2 . . . . 1 . 1 . 2 . . . . Misdirections 3 | . . . . . . . . . . . . . . 3 . . . . . . . . . . . . . Weapon Failures 29 | . . . . . 1 3 1 . . 1 . . . 23 . . . . . . . . . . . . . Overload Shots 4 | . . . . . . . . . . . 4 . . . . . . . . . . . . . . . . Overflow Damage 3344 | 1 . . . . 422 11 . . 9 393 82 20 . 70 584 . . 261 44 294 128 . 408 463 . 104 50 Projectiles 950 | . . . . . . . . . 9 19 . . . 26 . . . . . 223 92 . 174 407 . . . Explosions 981 | 1 . . . . 271 . . . . 106 82 20 . 4 246 . . . 44 . . . . 53 . 104 50 Melee 1413 | . . . . . 151 11 . . . 268 . . . 40 338 . . 261 . 71 36 . 234 3 . . . Knockbacks 90 | . . . . . . . . . 1 2 1 1 3 2 6 . 1 1 6 6 7 . 31 20 . 2 . Impact 6 | . . . . . . . . . . 1 1 . . . 3 . . 1 . . . . . . . . . Kinetic 79 | . . . . . . . . . 1 . . 1 3 2 2 . 1 . 6 6 7 . 30 18 . 2 . Secondary 5 | . . . . . . . . . . 1 . . . . 1 . . . . . . . 1 2 . . . Self-Inflicted Damage 964 | 40 . 47 . . 298 . . . . 51 20 . 19 . . . . . 62 . 6 . 99 148 . 172 2 Shots 33 | 1 . 1 . . 4 . . . . 7 1 . 1 . . . . . 1 . 1 . 11 2 . 3 . Rammed 6 | 1 3 . . . . . . . . . . . . . . . . . . . . . . . . 1 1 Targets Rammed 22 | 1 3 . . . 1 . . . . 1 1 . . 1 7 . . . . 1 1 . 3 . . 1 1 Kicked 15 | . . . . . . . . . . 1 1 . . 1 7 . . . . 1 1 . 3 . . . . Crushed 1 | . . . . . 1 . . . . . . . . . . . . . . . . . . . . . . Highest Temperature 690 | 40 263 162 148 . 421 320 195 . 359 332 332 336 290 690 325 27 229 375 391 340 402 399 504 439 44 378 397 Average Temperature 107 | 17 50 36 53 . 127 87 69 . 87 83 114 117 95 144 122 15 127 166 103 109 125 113 138 106 27 86 106 Received Heat Transfer 5675 | . 42 261 72 . 189 396 175 . 207 228 128 13 . 462 472 . 78 . 159 682 123 36 90 1736 18 63 45 Effects 33 | . . . . . . 1 . . 1 . 1 . 1 8 5 . . . . 6 . . 3 5 . 2 . Shutdowns 10 | . . . . . . . . . . . . . . 4 . . . . . 1 . . 3 2 . . . Energy Bleed 4 | . . . . . . . . . . . . . 1 1 . . . . . . . . . 1 . 1 . Interference 14 | . . . . . . 1 . . . . 1 . . . 5 . . . . 5 . . . 2 . . . Short Circuit 2 | . . . . . . . . . 1 . . . . 1 . . . . . . . . . . . . . Damage (minor) 3 | . . . . . . . . . . . . . . 2 . . . . . . . . . . . 1 . Siege Activations . | . . . . . . . . . . . . . . . . . . . . . . . . . . . . Martial Activations 1 | . . . . . . . . . . 1 . . . . . . . . . . . . . . . . . Total Turns 20 | . . . . . . . . . . 20 . . . . . . . . . . . . . . . . . Longest Duration 20 | . . . . . . . . . . 20 . . . . . . . . . . . . . . . . . Shielding Activations 1 | . . . . . . . . . 1 . . . . . . . . . . . . . . . . . . Total Turns 21 | . . . . . . . . . 21 . . . . . . . . . . . . . . . . . . Longest Duration 21 | . . . . . . . . . 21 . . . . . . . . . . . . . . . . . . Robots Disrupted 2 | . . . . . . . . . . . . . . . . . . . . . 1 1 . . . . . Combat Hostiles 2 | . . . . . . . . . . . . . . . . . . . . . 1 1 . . . . . Robots Corrupted 20 | . . . . . 2 1 . . . 4 1 . . . 1 . . 1 . . 6 2 1 1 . . . Combat Hostiles 17 | . . . . . 2 1 . . . 3 1 . . . . . . 1 . . 6 2 1 . . . . Parts Fried 45 | . . . . . 6 5 . . . 9 2 . 3 . 1 1 . . . . 11 2 2 3 . . . Impact Corruptions 19 | . . . . . . . . . . 7 . . . . 2 . . 9 . . . . . 1 . . . Robots Melted 12 | . . . . . 1 . . . . 2 . . . 1 3 . . . . 3 . . 1 . . 1 . Combat Hostiles 11 | . . . . . 1 . . . . 1 . . . 1 3 . . . . 3 . . 1 . . 1 . Parts Melted 56 | . . 4 1 . 4 . . . . 3 1 . . 10 13 . . . 2 11 2 . 2 3 . . . Heat Transferred 26374 | 50 161 1628 370 . 581 150 . . 510 1153 2049 350 100 6067 6136 150 . . 450 3045 980 . 1316 298 . 380 450 Parts Sabotaged . | . . . . . . . . . . . . . . . . . . . . . . . . . . . . Parts Stolen . | . . . . . . . . . . . . . . . . . . . . . . . . . . . . Parts Stripped . | . . . . . . . . . . . . . . . . . . . . . . . . . . . . Power Chain Reactions 8 | 1 1 . . . . 1 . . . 2 1 . 2 . . . . . . . . . . . . . . Alert | -11 -10 -10 -8 -8 -6 -6 -6 -6 -5 -5 -5 -5 -5 -5 -4 -4 -4 -4 -3 -3 -3 -2 -2 -2 -2 -1 -1 ------- Run | Yrd Mat Sub Rec Scr Fac Low Low Zio Pro Fac Ext Cet Arc Hub Fac Upp Upp Zhi Pro Res Qua Res Tes Sec Gar Acc Com Maximum Alert Level 5 | . . . . . 1 . . . . 2 5 4 3 2 4 . . . . 4 3 2 3 3 3 3 2 Low Security (%) 23 | 100 100 . 100 . 77 . . . . 62 . . . 30 1 . . . . . . 10 28 . . . . Level 1 18 | . . . . . 22 . . . . 26 16 . 39 44 30 . . . . 7 . 27 32 17 . 14 2 Level 2 33 | . . . . . . . . . . 10 45 . 56 25 26 . . . . 57 5 61 31 61 . 73 97 Level 3 18 | . . . . . . . . . . . 13 92 3 . 17 . . . . 20 94 . 7 20 100 12 . Level 4 4 | . . . . . . . . . . . 11 7 . . 23 . . . . 14 . . . . . . . Level 5 . | . . . . . . . . . . . 13 . . . . . . . . . . . . . . . . High Security . | . . . . . . . . . . . . . . . . . . . . . . . . . . . . Max Security . | . . . . . . . . . . . . . . . . . . . . . . . . . . . . Peak Influence 1678 | 10 70 . 72 . 329 . . . . 482 1678 1110 740 625 1215 . . . . 1484 904 495 720 1082 780 809 688 Initial 916 | . . . 52 . . . . . . 46 228 916 430 139 299 . . . . 525 834 495 129 381 766 465 512 Average 482 | 1 18 . 23 . 124 . . . . 176 760 1049 428 292 684 . . . . 679 814 374 398 549 768 491 598 Influence Increases 17058 | 15 281 245 193 . 984 432 280 . 376 691 1934 553 614 1298 1459 140 187 10 335 2495 810 165 1169 1403 20 674 295 Destroy 0b10 Robot/C 7580 | . 200 140 60 . 480 320 180 . 240 400 760 160 80 580 580 120 160 . 260 1200 460 40 460 440 . 160 100 Destroy 0b10 Robot/NC 660 | 15 20 . 5 . 50 5 5 . . 60 40 70 25 45 95 . . 10 5 20 45 10 55 35 . 35 10 Destroy Leader 1202 | . 42 . . . 102 20 20 . 50 92 66 . . 116 104 20 10 . 30 254 82 22 60 72 . 30 10 Allied During Kill 1397 | . . . . . . 12 . . 56 . 681 226 105 115 74 . 17 . 10 11 . 19 22 49 . . . Successful Hack 208 | . . . 5 . 2 . . . . . 21 . . . . . . . . . 75 32 24 21 14 14 . Select Force Hacks 120 | . . . 120 . . . . . . . . . . . . . . . . . . . . . . . . Disable Machine 990 | . 15 . . . 180 . . . . . 45 15 60 135 120 . . . . 60 60 15 105 90 . 60 30 Destroy Structure 2131 | . 4 . 3 . 95 . . . . 94 246 82 36 202 54 . . . . 170 58 27 288 351 6 285 130 Advance Influence 450 | . . . . . . . . . . . . . . . . . . . . 450 . . . . . . . Partial Spotted 90 | . . . . . . . . . . . . . . 15 . . . . . 30 . . . 15 . 15 15 Lose Combat Pursuer 1410 | . . 105 . . 75 75 75 . 30 45 75 . . 90 60 . . . 30 300 30 . 15 330 . 75 . Miscellaneous 820 | . . . . . . . . . . . . . 308 . 372 . . . . . . . 140 . . . . Influence Decreases 16749 | 15 281 134 304 . 655 610 431 . 301 300 764 1112 1293 1084 905 638 326 539 222 1125 1411 817 721 1059 266 649 787 Entered New Map 5834 | . . . 59 . . 122 30 . . 29 238 720 647 259 313 432 128 529 . 38 649 387 101 297 256 311 289 Time Decay 8156 | 15 281 84 245 . 535 458 381 . 301 261 446 262 646 406 452 206 198 10 162 727 562 130 550 362 . 278 198 Lost Part 1320 | . . 50 . . 120 10 20 . . 10 . 10 . 120 60 . . . 40 320 40 . 50 240 10 60 160 Lost Ally 850 | . . . . . . 20 . . . . 80 120 . 160 80 . . . 20 40 10 . 20 160 . . 140 Purge Threat 589 | . . . . . . . . . . . . . . 139 . . . . . . 150 300 . . . . . Squads Dispatched 84 | . 2 . 1 . 10 . . . . 6 3 . . 14 9 . . . . 6 9 1 7 7 . 6 3 Investigation 3 | . . . 1 . 1 . . . . . . . . . . . . . . 1 . . . . . . . Extermination 27 | . . . . . 4 . . . . 2 . . . 3 2 . . . . . 5 1 4 2 . 2 2 Reinforcement 33 | . 2 . . . 5 . . . . 4 . . . 6 3 . . . . 5 2 . 1 4 . . 1 Assault 13 | . . . . . . . . . . . 3 . . 2 1 . . . . . 1 . 2 1 . 3 . Garrison 7 | . . . . . . . . . . . . . . 3 3 . . . . . 1 . . . . . . Intercept 1 | . . . . . . . . . . . . . . . . . . . . . . . . . . 1 . Searches Triggered . | . . . . . . . . . . . . . . . . . . . . . . . . . . . . Construction Impeded 8 | . . . . . 1 . . . . 1 . . . 2 1 . . . . 1 1 . . 1 . . . Haulers Reinforced 5 | . . . . . . . . . . 1 . . . . 1 . . . . 2 1 . . . . . . Active Scanning Responses . | . . . . . . . . . . . . . . . . . . . . . . . . . . . . Cargo Convoy Interrupts 1 | . . . . . 1 . . . . . . . . . . . . . . . . . . . . . . Stealth | -11 -10 -10 -8 -8 -6 -6 -6 -6 -5 -5 -5 -5 -5 -5 -4 -4 -4 -4 -3 -3 -3 -2 -2 -2 -2 -1 -1 --------- Run | Yrd Mat Sub Rec Scr Fac Low Low Zio Pro Fac Ext Cet Arc Hub Fac Upp Upp Zhi Pro Res Qua Res Tes Sec Gar Acc Com Distress Signals 36 | . . . . . 3 . . . . . 2 2 . 5 4 . . . 1 4 2 1 5 6 . . 1 Communications Jammed . | . . . . . . . . . . . . . . . . . . . . . . . . . . . . Distress Signals . | . . . . . . . . . . . . . . . . . . . . . . . . . . . . Times Spotted 716 | . 17 27 3 . 40 29 14 . 14 24 45 24 10 56 41 6 10 1 20 115 40 6 35 64 24 25 26 Peak Tracking Total 21 | . 3 4 2 . 8 9 4 . 4 6 6 6 2 9 7 4 7 1 8 13 6 4 8 16 13 8 21 Tactical Retreats 39 | . . 1 . . 2 4 5 . 1 3 2 . . 5 2 . . . 2 5 1 . 1 3 . 2 . Traps | -11 -10 -10 -8 -8 -6 -6 -6 -6 -5 -5 -5 -5 -5 -5 -4 -4 -4 -4 -3 -3 -3 -2 -2 -2 -2 -1 -1 ------- Run | Yrd Mat Sub Rec Scr Fac Low Low Zio Pro Fac Ext Cet Arc Hub Fac Upp Upp Zhi Pro Res Qua Res Tes Sec Gar Acc Com Traps Triggered 23 | . 2 1 . . 1 . . . . 1 . . . 2 1 . . . . 2 3 . 3 1 . . 6 Indirectly 1 | . . . . . . . . . . 1 . . . . . . . . . . . . . . . . . Trap Hack Attempts . | . . . . . . . . . . . . . . . . . . . . . . . . . . . . Triggered . | . . . . . . . . . . . . . . . . . . . . . . . . . . . . Disarmed . | . . . . . . . . . . . . . . . . . . . . . . . . . . . . Reprogrammed . | . . . . . . . . . . . . . . . . . . . . . . . . . . . . Reused 1 | . . 1 . . . . . . . . . . . . . . . . . . . . . . . . . Traps Extracted . | . . . . . . . . . . . . . . . . . . . . . . . . . . . . Installed 2 | . . 1 . . . . . . . . . . . 1 . . . . . . . . . . . . . Triggered . | . . . . . . . . . . . . . . . . . . . . . . . . . . . . Most Traps Carried 1 | . . 1 . 1 1 1 1 1 1 1 1 1 1 1 . . . . . . . . . . . . . Machines | -11 -10 -10 -8 -8 -6 -6 -6 -6 -5 -5 -5 -5 -5 -5 -4 -4 -4 -4 -3 -3 -3 -2 -2 -2 -2 -1 -1 ---------- Run | Yrd Mat Sub Rec Scr Fac Low Low Zio Pro Fac Ext Cet Arc Hub Fac Upp Upp Zhi Pro Res Qua Res Tes Sec Gar Acc Com Machines Disabled 80 | . 1 6 . . 12 . 1 . . . 3 2 4 9 8 . . 3 2 4 4 1 8 6 . 4 2 Max in Single Turn 6 | . 1 4 . . 5 . 1 . . . 1 1 3 2 6 . . 1 1 1 1 1 2 1 . 1 1 Garrison Access 2 | . . . . . 1 . . . . . . . . 1 . . . . . . . . . . . . . Network Hub 2 | . . . . . . . . . . . . . . 2 . . . . . . . . . . . . . Energy Cycler 1 | . . . . . . . . . . . . . . . . . . . . . . . . . . 1 . Machines Repaired . | . . . . . . . . . . . . . . . . . . . . . . . . . . . . Machines Dismantled . | . . . . . . . . . . . . . . . . . . . . . . . . . . . . Machines Sabotaged . | . . . . . . . . . . . . . . . . . . . . . . . . . . . . Overloaded Fab Kills . | . . . . . . . . . . . . . . . . . . . . . . . . . . . . Hacking | -11 -10 -10 -8 -8 -6 -6 -6 -6 -5 -5 -5 -5 -5 -5 -4 -4 -4 -4 -3 -3 -3 -2 -2 -2 -2 -1 -1 --------- Run | Yrd Mat Sub Rec Scr Fac Low Low Zio Pro Fac Ext Cet Arc Hub Fac Upp Upp Zhi Pro Res Qua Res Tes Sec Gar Acc Com Machines Accessed 59 | . 2 1 5 . 7 . 1 1 . 1 10 . . 2 2 . . 4 . 1 8 3 5 2 1 3 . Terminals 41 | . 2 . 1 . 4 . . . . . 9 . . 2 1 . . . . 1 8 3 5 1 1 3 . Fabricators . | . . . . . . . . . . . . . . . . . . . . . . . . . . . . Repair Stations 1 | . . . . . 1 . . . . . . . . . . . . . . . . . . . . . . Recycling Units 5 | . . . 4 . . . . . . . 1 . . . . . . . . . . . . . . . . Scanalyzers 2 | . . . . . 1 . . . . . . . . . 1 . . . . . . . . . . . . Garrison Access 3 | . . . . . 1 . . . . 1 . . . . . . . . . . . . . 1 . . . Total Hacks 141 | . 3 4 6 . 12 . 1 3 . 1 12 . . 3 4 . . 17 . 3 19 19 16 7 1 10 . Successful 63 | . 2 4 5 . 6 . 1 3 . . 5 . . 1 2 . . 17 . . 5 5 2 2 1 2 . Failed 77 | . 1 . 1 . 5 . . . . 1 7 . . 2 2 . . . . 3 14 14 14 5 . 8 . Catastrophic 27 | . . . . . 3 . . . . . 2 . . 1 . . . . . 2 8 5 5 . . 1 . Database Lockouts 1 | . . . . . 1 . . . . . . . . . . . . . . . . . . . . . . Manual 34 | . 1 . 6 . 2 . . . . . 1 1 . 1 . . . . . . 5 10 7 . . . . Terminals 94 | . 3 . 1 . 4 . . . . . 11 . . 3 1 . . . . 3 19 19 16 3 1 10 . Fabricators . | . . . . . . . . . . . . . . . . . . . . . . . . . . . . Repair Stations 2 | . . . . . 2 . . . . . . . . . . . . . . . . . . . . . . Recycling Units 6 | . . . 5 . . . . . . . 1 . . . . . . . . . . . . . . . . Scanalyzers 8 | . . . . . 5 . . . . . . . . . 3 . . . . . . . . . . . . Garrison Access 6 | . . . . . 1 . . . . 1 . . . . . . . . . . . . . 4 . . . Terminal Hacks 45 | . 2 4 . . 1 . 1 3 . . 5 . . 1 . . . 17 . . 3 4 . 1 1 2 . Record 9 | . . 4 . . . . . . . . . . . . . . . 5 . . . . . . . . . Part Schematic 7 | . . . . . . . . 3 . . . . . . . . . 4 . . . . . . . . . Robot Analysis 4 | . . . . . . . . . . . . . . . . . . 4 . . . . . . . . . Prototype ID Bank 8 | . 1 . . . . . . . . . 1 . . . . . . 4 . . 2 . . . . . . Open Door 8 | . . . . . . . 1 . . . 4 . . . . . . . . . . . . 1 . 2 . Branch Access Points 2 | . 1 . . . . . . . . . . . . . . . . . . . . 1 . . . . . Unreport Threat 4 | . . . . . . . . . . . . . . 1 . . . . . . 1 2 . . . . . Hauler Manifests 1 | . . . . . 1 . . . . . . . . . . . . . . . . . . . . . . Registered Prototypes 1 | . . . . . . . . . . . . . . . . . . . . . . 1 . . . . . Garrison Registry 1 | . . . . . . . . . . . . . . . . . . . . . . . . . 1 . . Fabricator Hacks . | . . . . . . . . . . . . . . . . . . . . . . . . . . . . Repair Station Hacks . | . . . . . . . . . . . . . . . . . . . . . . . . . . . . Recycling Unit Hacks . | . . . . . . . . . . . . . . . . . . . . . . . . . . . . Scanalyzer 6 | . . . . . 4 . . . . . . . . . 2 . . . . . . . . . . . . Insert Component 1 | . . . . . 1 . . . . . . . . . . . . . . . . . . . . . . Analyze 1 | . . . . . 1 . . . . . . . . . . . . . . . . . . . . . . Retrieve Study 4 | . . . . . 2 . . . . . . . . . 2 . . . . . . . . . . . . Garrison Access Hacks 2 | . . . . . 1 . . . . . . . . . . . . . . . . . . 1 . . . Unlock Access 1 | . . . . . . . . . . . . . . . . . . . . . . . . 1 . . . Seal Access 1 | . . . . . 1 . . . . . . . . . . . . . . . . . . . . . . Unauthorized Hacks 10 | . . . 5 . . . . . . . . . . . . . . . . . 2 1 2 . . . . Terminals 6 | . . . 1 . . . . . . . . . . . . . . . . . 2 1 2 . . . . Assimilate 1 | . . . . . . . . . . . . . . . . . . . . . 1 . . . . . . Botnet 5 | . . . 1 . . . . . . . . . . . . . . . . . 1 1 2 . . . . Fabricators . | . . . . . . . . . . . . . . . . . . . . . . . . . . . . Repair Stations . | . . . . . . . . . . . . . . . . . . . . . . . . . . . . Recycling Units 4 | . . . 4 . . . . . . . . . . . . . . . . . . . . . . . . Tunnel 4 | . . . 4 . . . . . . . . . . . . . . . . . . . . . . . . Scanalyzers . | . . . . . . . . . . . . . . . . . . . . . . . . . . . . Garrison Access . | . . . . . . . . . . . . . . . . . . . . . . . . . . . . Data Cores Recovered 5 | . 1 . . . . . . . . . . . . 1 . . . . . . 1 1 . . . 1 . Used 1 | . . . . . . . . . . . . . . 1 . . . . . . . . . . . . . Hacking Detections 37 | . 1 . 1 . 5 . . . . 1 6 . . 2 1 . . . . 1 8 3 5 1 1 1 . Full Trace Events 1 | . . . . . 1 . . . . . . . . . . . . . . . . . . . . . . Feedback Events . | . . . . . . . . . . . . . . . . . . . . . . . . . . . . Feedback Blocked . | . . . . . . . . . . . . . . . . . . . . . . . . . . . . Robot Schematics Acquired 5 | . . . . . . . . 4 . . . . . . . . . . . . . . . 1 . . . Robots Built . | . . . . . . . . . . . . . . . . . . . . . . . . . . . . Authchips . | . . . . . . . . . . . . . . . . . . . . . . . . . . . . Time . | . . . . . . . . . . . . . . . . . . . . . . . . . . . . Total Robot Build Rating . | . . . . . . . . . . . . . . . . . . . . . . . . . . . . Part Schematics Acquired 24 | . . . . . 1 . . 16 . . . . . . . . . 4 . . . . . 3 . . . Parts Built . | . . . . . . . . . . . . . . . . . . . . . . . . . . . . Authchips . | . . . . . . . . . . . . . . . . . . . . . . . . . . . . Time . | . . . . . . . . . . . . . . . . . . . . . . . . . . . . Total Part Build Rating . | . . . . . . . . . . . . . . . . . . . . . . . . . . . . Part Studies Acquired 4 | . . . . . 2 . . . . . . . . . 2 . . . . . . . . . . . . Parts Repaired . | . . . . . . . . . . . . . . . . . . . . . . . . . . . . Time . | . . . . . . . . . . . . . . . . . . . . . . . . . . . . Parts Recycled . | . . . . . . . . . . . . . . . . . . . . . . . . . . . . Recycled Matter . | . . . . . . . . . . . . . . . . . . . . . . . . . . . . Retrieved Matter . | . . . . . . . . . . . . . . . . . . . . . . . . . . . . Retrieved Components . | . . . . . . . . . . . . . . . . . . . . . . . . . . . . Parts Scanalyzed 1 | . . . . . 1 . . . . . . . . . . . . . . . . . . . . . . Part Schematics Acquired 1 | . . . . . 1 . . . . . . . . . . . . . . . . . . . . . . Parts Damaged . | . . . . . . . . . . . . . . . . . . . . . . . . . . . . Bothacking | -11 -10 -10 -8 -8 -6 -6 -6 -6 -5 -5 -5 -5 -5 -5 -4 -4 -4 -4 -3 -3 -3 -2 -2 -2 -2 -1 -1 ------------ Run | Yrd Mat Sub Rec Scr Fac Low Low Zio Pro Fac Ext Cet Arc Hub Fac Upp Upp Zhi Pro Res Qua Res Tes Sec Gar Acc Com Used RIF Installer . | . . . . . . . . . . . . . . . . . . . . . . . . . . . . Robots Hacked . | . . . . . . . . . . . . . . . . . . . . . . . . . . . . Non-combat . | . . . . . . . . . . . . . . . . . . . . . . . . . . . . Combat . | . . . . . . . . . . . . . . . . . . . . . . . . . . . . Robot Hacks Applied . | . . . . . . . . . . . . . . . . . . . . . . . . . . . . Relay Couplers Released 2 | . . . . . . . . . . . . . . 2 . . . . . . . . . . . . . Machine Destruction 2 | . . . . . . . . . . . . . . 2 . . . . . . . . . . . . . Fabnet Peak Effective % . | . . . . . . . . . . . . . . . . . . . . . . . . . . . . Robots Rewired 13 | . . . . . . 2 . . . . 11 . . . . . . . . . . . . . . . . Allies Hacked 2 | . . . . . . . . . . . . . . . 1 . . . . . . . . 1 . . . Hacks Repelled . | . . . . . . . . . . . . . . . . . . . . . . . . . . . . Allies | -11 -10 -10 -8 -8 -6 -6 -6 -6 -5 -5 -5 -5 -5 -5 -4 -4 -4 -4 -3 -3 -3 -2 -2 -2 -2 -1 -1 -------- Run | Yrd Mat Sub Rec Scr Fac Low Low Zio Pro Fac Ext Cet Arc Hub Fac Upp Upp Zhi Pro Res Qua Res Tes Sec Gar Acc Com Total Allies 68 | . . . . . . 2 . 3 . . 20 5 . 2 5 . 1 . 1 2 1 4 3 8 . . 11 Largest Group 16 | . . . . . . 2 . 3 3 . 16 12 7 6 3 . 1 1 1 2 1 4 7 7 . . 5 Highest-Rated Group 779 | . . . . . . 49 . 90 90 . 636 779 527 385 144 . 99 89 119 76 26 256 463 608 . . 224 Highest-Rated Ally 159 | . . . . . . 29 . 31 31 . 159 159 135 96 48 . 99 89 119 38 26 64 69 99 . . 56 Initial UFD Resources 38 | . . . . . 22 22 22 22 26 26 26 26 26 26 28 28 28 28 32 32 32 35 35 35 35 38 38 Total Orders 3 | . . . . . . . . . . . . . 1 1 . . . . . . . . 1 . . . . STAY 3 | . . . . . . . . . . . . . 1 1 . . . . . . . . 1 . . . . Ally Attacks 489 | . . . . . . 7 . . 45 . 166 134 33 5 14 . 7 . 3 9 . 4 9 36 . . 17 Total Damage 10473 | . . . . . . 76 . . 779 . 3078 2386 896 75 465 . 231 . 102 127 . 181 445 805 . . 827 Kills 78 | . . . . . . 2 . . 9 . 25 21 4 2 4 . 2 . 1 1 . 1 3 3 . . . Allies Corrupted 6 | . . . . . . . . . . . 1 . . 2 . . . . 1 . . . . . . . 2 Allies Melted . | . . . . . . . . . . . . . . . . . . . . . . . . . . . . X0-1V1 Amusement Gains 878 | . 9 30 . . 54 20 34 34 35 25 29 17 60 51 43 13 11 76 50 95 43 32 58 26 . . 33 Good Acts 217 | . . 23 4 . 9 8 13 . 9 3 3 1 6 15 14 . 6 . 6 19 16 6 10 24 6 13 3 Bad Acts 105 | . . 12 1 . 4 10 4 . . 2 7 4 6 9 11 2 3 . 6 13 2 . 4 . . 1 4 Intel | -11 -10 -10 -8 -8 -6 -6 -6 -6 -5 -5 -5 -5 -5 -5 -4 -4 -4 -4 -3 -3 -3 -2 -2 -2 -2 -1 -1 ------- Run | Yrd Mat Sub Rec Scr Fac Low Low Zio Pro Fac Ext Cet Arc Hub Fac Upp Upp Zhi Pro Res Qua Res Tes Sec Gar Acc Com Active Infowar (turns) 2165 | 38 841 . . . . 759 . . . . . . . . . . . 3 330 180 13 . . . . . 1 Sensors 759 | . . . . . . 759 . . . . . . . . . . . . . . . . . . . . . IFF 513 | . . . . . . . . . . . . . . . . . . 3 330 180 . . . . . . . Terrain 177 | 14 150 . . . . . . . . . . . . . . . . . . . 13 . . . . . . Seismic 880 | 38 841 . . . . . . . . . . . . . . . . . . . . . . . . . 1 Robot Analysis Total 4 | . . . . . . . . . . . . . . . . . . 4 . . . . . . . . . Derelict Logs Recovered 14 | . . . . 5 . 1 2 1 2 . . . . . . 1 2 . . . . . . . . . . Drone Launches . | . . . . . . . . . . . . . . . . . . . . . . . . . . . . Drone Recoveries . | . . . . . . . . . . . . . . . . . . . . . . . . . . . . Exploration | -11 -10 -10 -8 -8 -6 -6 -6 -6 -5 -5 -5 -5 -5 -5 -4 -4 -4 -4 -3 -3 -3 -2 -2 -2 -2 -1 -1 ------------- Run | Yrd Mat Sub Rec Scr Fac Low Low Zio Pro Fac Ext Cet Arc Hub Fac Upp Upp Zhi Pro Res Qua Res Tes Sec Gar Acc Com Turns Passed 31241 | 122 1087 1446 723 3731 1791 1159 1253 1110 944 584 1116 565 2349 1277 1125 424 416 378 663 3527 1667 270 1583 822 99 600 410 Spaces Moved 17495 | 54 340 755 440 1198 912 757 895 775 638 278 600 233 405 677 670 372 312 242 382 2723 1055 194 1012 388 198 612 378 Core 281 | 3 . . . . . . . . . . . . 12 . . . . . . . . . . 119 19 113 15 Treads 1989 | 51 243 . . 1117 578 . . . . . . . . . . . . . . . . . . . . . . Legs 11867 | . . . . . 334 757 895 775 638 278 600 233 388 677 670 372 312 242 382 2268 571 194 1012 269 . . . Wheels 1373 | . 97 755 440 81 . . . . . . . . . . . . . . . . . . . . . . . Hover 850 | . . . . . . . . . . . . . . . . . . . . . . . . . . 487 363 Flight 1135 | . . . . . . . . . . . . . 5 . . . . . . 455 484 . . . 179 12 . Fastest Speed 21 | 50 160 119 150 150 108 117 97 97 106 121 116 128 103 97 97 101 111 111 120 27 21 104 95 50 21 30 37 Average Speed 138 | 153 253 159 150 308 157 121 122 117 133 124 124 203 295 121 109 107 111 116 131 97 126 106 124 125 30 67 46 Slowest Speed 2450 | 160 320 215 150 320 253 140 130 236 197 254 128 217 2450 226 122 111 111 120 250 140 370 111 199 250 67 186 106 Overloaded Moves 8 | . . . . . . . . . . 1 . . . . . . . . . . . . . . 7 . . Propulsion Burnouts . | . . . . . . . . . . . . . . . . . . . . . . . . . . . . Robots Hopped 5 | . . . . . . . . . . . . . . . . . . . . . 4 . . . 1 . . Potential Cave-ins 4 | . . . . . . . . . . . . . . . . . . . . 4 . . . . . . . Cave-ins Triggered . | . . . . . . . . . . . . . . . . . . . . . . . . . . . . Teleports 5 | . . . . . . . . . . . . . . . . . . . . 1 . . 1 3 . . . Exploration Rate (%) 56 | 4 55 63 89 84 28 79 88 85 79 13 76 70 84 62 18 62 58 70 61 69 95 8 83 35 39 19 13 Regions Visited 27 Branch Regions 19 Pre-discovered Areas 14 | . . 1 4 2 . . . 2 . . . . . . . 1 1 3 . . . . . . . . . Known Exits Taken 11 | . . 1 . . 1 . . . 1 1 . . 1 1 1 . . . 1 . 1 1 . 1 . . . Unknown Exits Taken 15 | 1 1 . 1 1 . 1 1 1 . . 1 1 . . . 1 1 1 . 1 . . 1 . . 1 . Scrap Searched 34 | . . 2 . 12 . 2 4 4 3 . . . . . . 3 2 . 2 . . . . . . . . Spaces Dug 161 | . 1 . 2 . 16 10 . . . 9 7 . . 24 5 . 14 . 4 24 13 3 1 9 2 1 16 Terrain Destroyed 1416 | 6 4 72 2 . 99 22 8 . 8 53 221 40 23 103 27 3 28 7 90 139 29 9 91 146 2 128 56 Melee 54 | . . . 2 . 16 2 . . . 4 . . . . 2 . 6 . . 10 8 . . 4 . . . Projectile 542 | . 1 . . . . 5 6 . 8 26 16 3 2 83 21 3 22 7 41 112 21 9 71 67 2 9 7 AOE 807 | 6 3 72 . . 83 10 . . . 23 205 37 21 19 4 . . . 49 12 . . 20 75 . 119 49 Terrain Rammed . | . . . . . . . . . . . . . . . . . . . . . . . . . . . . Walls Destroyed . | . . . . . . . . . . . . . . . . . . . . . . . . . . . . Machines Disabled . | . . . . . . . . . . . . . . . . . . . . . . . . . . . . Actions | -11 -10 -10 -8 -8 -6 -6 -6 -6 -5 -5 -5 -5 -5 -5 -4 -4 -4 -4 -3 -3 -3 -2 -2 -2 -2 -1 -1 --------- Run | Yrd Mat Sub Rec Scr Fac Low Low Zio Pro Fac Ext Cet Arc Hub Fac Upp Upp Zhi Pro Res Qua Res Tes Sec Gar Acc Com Total 22170 | 73 501 903 485 1248 1108 854 965 971 686 417 877 290 1538 896 869 386 336 314 473 3168 1253 233 1199 565 235 737 590 Wait 2275 | . 94 23 14 1 23 6 6 187 20 53 85 29 1114 72 52 6 2 34 32 62 50 8 38 31 23 30 180 Move 17460 | 53 339 754 439 1197 911 756 894 774 637 277 599 232 404 676 669 371 311 241 381 2722 1048 193 1011 388 195 611 377 Hop 3 | . . . . . . . . . . . . . . . . . . . . . 2 . . . 1 . . Pick Up 261 | 3 21 22 6 20 14 6 13 3 2 11 5 5 2 12 19 3 . 4 6 22 17 7 22 7 2 6 1 Fast Attach 198 | 7 2 2 . 3 12 . 2 . . 2 2 1 . 8 7 . 1 5 5 71 18 2 10 9 1 26 2 Attach 130 | . 1 8 . . 19 3 2 . . 4 2 . . 14 10 1 . 3 2 6 4 1 12 23 4 8 3 Detach 108 | . 2 . . 3 6 . . . . 2 3 . . 2 9 . 1 5 5 32 13 2 7 6 3 6 1 Swap 211 | . 10 10 3 1 28 6 3 1 . 6 4 2 . 11 11 . 1 3 8 39 13 3 25 11 1 7 4 Drop 159 | . . 16 5 23 10 2 7 5 2 7 2 3 2 3 3 . . 5 1 30 6 1 7 5 3 9 2 Fire 1010 | 9 29 67 15 . 55 61 37 . 23 42 51 18 16 95 66 5 14 5 33 162 50 16 52 47 2 28 12 Melee 191 | . . . 3 . 29 8 . 1 2 12 . . . 1 16 . 6 9 . 21 31 . 10 37 . 5 . Ram 2 | . . . . . . . . . . . . . . . . . . . . . . . . . . 1 1 Kick 15 | . . . . . . . . . . 1 1 . . 1 7 . . . . 1 1 . 3 . . . . Crush 5 | 1 3 . . . 1 . . . . . . . . . . . . . . . . . . . . . . Escape Stasis 7 | . . . . . . . . . . . . . . . . . . . . . . . . . . . 7 Rewire 133 | . . . . . . 6 1 . . . 123 . . . . . . . . . . . 2 1 . . . Trap 2 | . . 1 . . . . . . . . . . . 1 . . . . . . . . . . . . . Miscellaneous . | . . . . . . . . . . . . . . . . . . . . . . . . . . . . Route ------- -11/Scrapyard -10/Materials (discovered 3 exits: *Min x2 / *Sub) -10/Subcaves (discovered 3 exits: *Mat x2 / *Rec) -8/Recycling (discovered 2 exits: *Fac / [*Scr]) -8/Scraptown (discovered 2 exits: *Fac x2) -6/Factory -6/Lower Caves -6/Lower Caves (discovered 2 exits: *Fac / *Zio) -6/Zion -5/Proximity Caves -5/Factory (discovered 3 exits: Fac / Upp / *Ext) -5/Extension (discovered 2 exits: *Fac / *Cet) -5/Cetus (discovered 3 exits: *Fac x2 / [*Arc]) -5/Archives (discovered 3 exits: *Fac / *Hub x2) -5/Hub_04(d) (discovered 2 exits: *Fac x2) -4/Factory (discovered 2 exits: Res / *Upp) -4/Upper Caves -4/Upper Caves (discovered 2 exits: Res / *Zhi) -4/Zhirov -3/Proximity Caves -3/Research (discovered 3 exits: *Res / [*Arm] / *Qua) -3/Quarantine -2/Research (discovered 3 exits: Acc / *Tes x2) -2/Testing (discovered 3 exits: *Acc / *Sec / [*Frg]) -2/Section 7 (discovered 2 exits: *Acc / Gar) -2/Garrison (discovered 3 exits: *Acc x3) -1/Access (discovered 2 exits: Sur / *Com) -1/Command To Fleet Rendezvous History --------- Turn | Location | Event 11 | -11/Scrapyard | Discovered new exit (range 15) 123 | -11/Scrapyard | Entered Materials 281 | -10/Materials | Discovered new exit (range 12) 313 | -10/Materials | Build established: Mutant 547 | -10/Materials | Discovered new exit (range 5) 788 | -10/Materials | Identified exit to Mines 1173 | -10/Materials | Discovered new exit (range 9) 1199 | -10/Materials | Prayed at D.C.S.S. Altar Unit 1210 | -10/Materials | Entered Subcaves 1211 | -10/Subcaves | Approached by a straggling Scientist 1237 | -10/Subcaves | Inventory capacity permanently improved by X0-1V1 (+1; -100 max core) 1450 | -10/Subcaves | X0-1V1 sent you into danger 1505 | -10/Subcaves | Discovered new exit (range 10) 1543 | -10/Subcaves | Build established: Hauler-Mutant 1708 | -10/Subcaves | X0-1V1 sent hostile G-34 Mercenary (x3) 1718 | -10/Subcaves | X0-1V1 whisked you away to safety 1755 | -10/Subcaves | Learned location of Zion (-6) 1755 | -10/Subcaves | Met a Zionite searching for "candidates" 1919 | -10/Subcaves | X0-1V1 mutated your Weapon slot to Propulsion slot 2095 | -10/Subcaves | Identified exit to Recycling 2095 | -10/Subcaves | X0-1V1 revealed exit location to -8/Recycling 2108 | -10/Subcaves | Shifting Twisted Machinery released Slug Cannon 2125 | -10/Subcaves | Shifting Twisted Machinery released Piercing Trap 2144 | -10/Subcaves | Core integrity permanently improved by X0-1V1 (+400) 2145 | -10/Subcaves | EM resistance permanently improved by X0-1V1 (+20%; -200 max core) 2148 | -10/Subcaves | X0-1V1 activates XOMVISION 2155 | -10/Subcaves | Identified exit to Materials 2155 | -10/Subcaves | X0-1V1 revealed exit location to -8/Materials 2174 | -10/Subcaves | Shifting Twisted Machinery released Sub. Power Source 2330 | -10/Subcaves | X0-1V1 mutated your Propulsion slot to Power slot 2349 | -10/Subcaves | X0-1V1 sent hostile G-34 Mercenary (x3) 2356 | -10/Subcaves | X0-1V1 sent you into danger 2375 | -10/Subcaves | Visited 4L-MR0's lab 2382 | -10/Subcaves | Found Prototype Device 2387 | -10/Subcaves | Found Prototype Leg 2442 | -10/Subcaves | Visited Clippyterm 2446 | -10/Subcaves | Learned Research security intel 2571 | -10/Subcaves | Ambushed by Subdweller buried in earth 2618 | -10/Subcaves | Lost 4 parts (1p1n1u1w) 2656 | -10/Subcaves | Entered Recycling 2703 | -8/Recycling | Core integrity fell below 50% 3097 | -8/Recycling | X0-1V1 activates XOMVISION 3227 | -8/Recycling | Discovered new exit (range 16) 3340 | -8/Recycling | Scanned before Scraplab entrance 3366 | -8/Recycling | Entered Scraplab 3378 | -8/Recycling | Discovered new exit (range 2) 3379 | -8/Recycling | Entered Scraptown 3666 | -8/Scraptown | Visited UFD Registry 3666 | -8/Scraptown | Registered with UFD as "Hardbank" 3845 | -8/Scraptown | Scanned Subdweller tech in exchange for log data 3852 | -8/Scraptown | Learned Research security intel 3855 | -8/Scraptown | Learned Factory stockpile data 3861 | -8/Scraptown | Learned location of Armory (-3) 3865 | -8/Scraptown | Learned Research interactive machine intel 3898 | -8/Scraptown | Discovered new exit (range 11) 4852 | -8/Scraptown | Visited Assassins FH 4878 | -8/Scraptown | Visited SPCMW 5064 | -8/Scraptown | Visited Comm Corps 5108 | -8/Scraptown | Visited Awakened 5211 | -8/Scraptown | Visited Bundlers 5549 | -8/Scraptown | Visited Science Guys 5627 | -8/Scraptown | Visited Infowarlord's Domain 5642 | -8/Scraptown | Found Exp. Sensor Array 5900 | -8/Scraptown | Visited Junk Cannon Lab 5917 | -8/Scraptown | Found Prototype Special Weapon 5969 | -8/Scraptown | Visited DA-N13 Charitable Foundation 5982 | -8/Scraptown | Found DCF Scrap (29 items) 6145 | -8/Scraptown | Visited Junk Repository 6256 | -8/Scraptown | Visited Botcube Research 6313 | -8/Scraptown | Visited LU-1G1's Boring Crew 6365 | -8/Scraptown | Visited Curators Association 6950 | -8/Scraptown | Met Optimus 6950 | -8/Scraptown | Accepted into 0bPrime 7104 | -8/Scraptown | Discovered new exit (range 3) 7110 | -8/Scraptown | Entered Factory 7110 | -6/Factory | Evolved 8 slots: Propulsion x4, Utility x2, Weapon x2 7114 | -6/Factory | Identified Sfc. Transmogrifier 7230 | -6/Factory | Identified exit to Lower Caves 7230 | -6/Factory | X0-1V1 revealed exit location to -6/Lower Caves 7300 | -6/Factory | Allied Derelicts emerged from ambush trap array 7603 | -6/Factory | X0-1V1 foreshadows a heat wave 7673 | -6/Factory | Weapon slot count temporarily expanded by X0-1V1 (+2) 7787 | -6/Factory | Cargo convoy interrupted 7794 | -6/Factory | Ambient heat levels rising (+10) 8037 | -6/Factory | Ambient heat levels rising (+10) 8079 | -6/Factory | Lost 3 parts (2n1w) 8132 | -6/Factory | Central database locked down 8219 | -6/Factory | Ambient heat levels falling (-10) 8356 | -6/Factory | Lost 3 parts (2n1u) 8364 | -6/Factory | Ambient heat levels falling (-10) 8645 | -6/Factory | Build established: Scavenger-Gunner 8739 | -6/Factory | X0-1V1 announced a LAN party 8796 | -6/Factory | Lost 3 parts (1n2w) 8801 | -6/Factory | Identified Cargo Legs 8802 | -6/Factory | Attached Cargo Legs, gained temporary slots: Utility x2 8901 | -6/Factory | Entered Lower Caves 8923 | -6/Lower Caves | Learned location of 1 exit from Factory 8934 | -6/Lower Caves | Attracted the attention of an 0b10 outpost 9022 | -6/Lower Caves | Destroyed 8 combat bots 9091 | -6/Lower Caves | Build established: Mutant 9310 | -6/Lower Caves | Encountered a Warlord checkpoint 9426 | -6/Lower Caves | Found DCF Scrap (14 items) 9529 | -6/Lower Caves | Build established: Skirmisher 9561 | -6/Lower Caves | X0-1V1 vaporized surrounding terrain (radius 24) 9786 | -6/Lower Caves | Spotted B-75 Beast 9821 | -6/Lower Caves | X0-1V1 upgraded hostiles (x1) 9821 | -6/Lower Caves | Spotted B-86 Titan 9904 | -6/Lower Caves | X0-1V1 sent you into danger 9955 | -6/Lower Caves | Core integrity restored by X0-1V1 (+152) 9984 | -6/Lower Caves | Found Alien Artifact 9984 | -6/Lower Caves | Identified Core Expander 9984 | -6/Lower Caves | Installed Core Expander, added new Propulsion slot 10020 | -6/Lower Caves | Discovered new exit (range 11) 10060 | -6/Lower Caves | Entered another Lower Caves area 10069 | -6/Lower Caves | X0-1V1 activates XOMVISION 10189 | -6/Lower Caves | Discovered new exit (range 7) 10283 | -6/Lower Caves | Build established: Gunner 10299 | -6/Lower Caves | X0-1V1 sent hostile X-62 Marksman (x2) 10353 | -6/Lower Caves | Forcibly received Sfc. Transmogifier from X0-1V1 10448 | -6/Lower Caves | Found Prototype Device 10459 | -6/Lower Caves | Murdered Warlord Statue 10511 | -6/Lower Caves | Encountered a Warlord checkpoint 10520 | -6/Lower Caves | System corruption reached 10% 10554 | -6/Lower Caves | Attracted the attention of an 0b10 checkpoint 10621 | -6/Lower Caves | X0-1V1 activates XOMVISION 10663 | -6/Lower Caves | Discovered new exit (range 15) 10702 | -6/Lower Caves | Learned Factory emergency access door positions 10732 | -6/Lower Caves | Build established: Hauler-Gunner 10870 | -6/Lower Caves | Core integrity restored by X0-1V1 (+256) 11121 | -6/Lower Caves | X0-1V1 activates XOMVISION 11313 | -6/Lower Caves | Entered Zion 11388 | -6/Zion | Discovered new exit (range 12) 11448 | -6/Zion | Given the Hacking Drone Bay 11541 | -6/Zion | Learned location of Extension (-5) 11609 | -6/Zion | Learned location of Quarantine (-3) 11683 | -6/Zion | Turned away by Imprinter 11741 | -6/Zion | Gained Derelict followers 11751 | -6/Zion | Learned Factory emergency access door positions 11825 | -6/Zion | Found Prototype Energy Gun 12423 | -6/Zion | Entered Proximity Caves 12423 | -5/Proximity Caves | Accompanied by 3 allies 12462 | -5/Proximity Caves | Learned 4 Factory zone layouts 12627 | -5/Proximity Caves | Identified exit to Factory 12627 | -5/Proximity Caves | X0-1V1 revealed exit location to -5/Factory 12630 | -5/Proximity Caves | Found DCF Scrap (14 items) 12637 | -5/Proximity Caves | Learned 4 Factory zone layouts 12710 | -5/Proximity Caves | Spotted B-75 Beast 12722 | -5/Proximity Caves | Allies destroyed B-75 Beast 12866 | -5/Proximity Caves | X0-1V1 activates XOMVISION 13248 | -5/Proximity Caves | Build established: Hauler-Mutant 13367 | -5/Proximity Caves | Entered Factory 13367 | -5/Factory | Evolved 2 slots: Propulsion x1, Weapon x1 13368 | -5/Factory | Identified exit to Upper Caves 13369 | -5/Factory | Identified exit to Factory 13370 | -5/Factory | Identified exit to Extension 13582 | -5/Factory | Build established: Hauler-Gunner 13814 | -5/Factory | X0-1V1 upgraded hostiles (x1) 13951 | -5/Factory | Entered Extension 14029 | -5/Extension | Rescued a captive Derelict 14031 | -5/Extension | Rescued a captive Derelict 14076 | -5/Extension | Rescued a captive Derelict 14077 | -5/Extension | Rescued a captive Derelict 14206 | -5/Extension | Rescued A7 14234 | -5/Extension | X0-1V1 rewrote 0W-SPV(b) IFF filter 14251 | -5/Extension | First assault squad dispatched 14256 | -5/Extension | Rescued a captive Derelict 14261 | -5/Extension | Rescued a captive Derelict 14658 | -5/Extension | Spotted B-75 Beast 14669 | -5/Extension | Destroyed B-75 Beast 14676 | -5/Extension | Attached CPS modules to VE-PUS(g) 14678 | -5/Extension | Attached CPS modules to A7 14689 | -5/Extension | Spotted B-75 Beast 14710 | -5/Extension | Allies destroyed B-75 Beast 14760 | -5/Extension | Build established: Commander-Gunner 14771 | -5/Extension | Rescued a captive Derelict 14772 | -5/Extension | Rescued a captive Derelict 14972 | -5/Extension | Lost 4 allies 15024 | -5/Extension | Discovered exit to Factory (range 10) 15026 | -5/Extension | Discovered new exit (range 6) 15067 | -5/Extension | Entered Cetus 15067 | -5/Cetus | Accompanied by 12 allies (A7) 15072 | -5/Cetus | Acquired a Cetus Manufacturing Module code from A7 15076 | -5/Cetus | X0-1V1 sent someone to keep an eye on you 15083 | -5/Cetus | Spotted Cetus Guard 15084 | -5/Cetus | Spotted Cetus Guard 15091 | -5/Cetus | Spotted Cetus Guard 15094 | -5/Cetus | Allies destroyed Cetus Guard 15100 | -5/Cetus | Allies destroyed Cetus Guard 15102 | -5/Cetus | Spotted Cetus Guard 15105 | -5/Cetus | Allies destroyed Cetus Guard 15256 | -5/Cetus | Started Cetus Manufacturing Module 15281 | -5/Cetus | Manufactured an Enhanced Grunt 15282 | -5/Cetus | Discovered new exit (range 16) 15306 | -5/Cetus | Manufactured an Enhanced Grunt 15317 | -5/Cetus | Spotted Cetus Guard 15317 | -5/Cetus | Spotted Cetus Guard 15321 | -5/Cetus | Spotted Cetus Guard 15322 | -5/Cetus | Spotted Cetus Guard 15331 | -5/Cetus | Manufactured an Enhanced Grunt 15335 | -5/Cetus | Destroyed Cetus Guard 15335 | -5/Cetus | Allies destroyed Cetus Guard 15338 | -5/Cetus | Allies destroyed Cetus Guard 15345 | -5/Cetus | Allies destroyed Cetus Guard 15356 | -5/Cetus | Manufactured an Enhanced Grunt 15362 | -5/Cetus | Discovered exit to Factory (range 16) 15370 | -5/Cetus | Lost 4 allies 15373 | -5/Cetus | Met Revision 17 15381 | -5/Cetus | Manufactured an Enhanced Grunt 15392 | -5/Cetus | X0-1V1 rewrote Enhanced Grunt IFF filter 15424 | -5/Cetus | X0-1V1 revealed exit location to -4/Factory 15442 | -5/Cetus | X0-1V1 vaporized surrounding terrain (radius 22) 15526 | -5/Cetus | Escorted A7 to Cetus Mainframe 15632 | -5/Cetus | Entered Archives 15632 | -5/Archives | Accompanied by 7 allies (A7) 15637 | -5/Archives | Received a hacking code to weaken MAIN.C 15691 | -5/Archives | Discovered exit to Factory (range 15) 15707 | -5/Archives | Discovered new exit (range 15) 15786 | -5/Archives | X0-1V1 added 0b10 threat records associated with you (minor) 16139 | -5/Archives | X0-1V1 vaporized surrounding terrain (radius 15) 16663 | -5/Archives | Identified exit to Hub_04(d) 16663 | -5/Archives | X0-1V1 revealed exit location to -5/Hub_04(d) 17309 | -5/Archives | System corruption reached 10% 17451 | -5/Archives | X0-1V1 activates XOMVISION 17559 | -5/Archives | X0-1V1 added 0b10 threat records associated with you (considerable) 17981 | -5/Archives | Entered Hub_04(d) 17981 | -5/Hub_04(d) | Accompanied by 6 allies 18124 | -5/Hub_04(d) | Discovered exit to Factory (range 14) 18248 | -5/Hub_04(d) | Network Hub disabled 18286 | -5/Hub_04(d) | Lost 3 allies 18454 | -5/Hub_04(d) | X0-1V1 upgraded hostiles (x1) 18463 | -5/Hub_04(d) | X0-1V1 sent hostile H-66 Slayer (x3) 18562 | -5/Hub_04(d) | Build established: Hauler-Gunner 18847 | -5/Hub_04(d) | Spotted B-75 Beast 18878 | -5/Hub_04(d) | Destroyed B-75 Beast 18890 | -5/Hub_04(d) | Spotted Lightning 18892 | -5/Hub_04(d) | Spotted Lightning 18900 | -5/Hub_04(d) | Spotted Lightning 18902 | -5/Hub_04(d) | Core integrity fell below 50% 18903 | -5/Hub_04(d) | Garrison activated, responded to threat 18921 | -5/Hub_04(d) | Destroyed Lightning 18933 | -5/Hub_04(d) | Lost 4 parts (1p1n2w) 18951 | -5/Hub_04(d) | System corruption reached 30% 19024 | -5/Hub_04(d) | Destroyed Lightning 19103 | -5/Hub_04(d) | Core integrity fell below 20% 19130 | -5/Hub_04(d) | X0-1V1 turns hostiles against one another 19156 | -5/Hub_04(d) | Identified Junk Cannon 19162 | -5/Hub_04(d) | Lost 6 parts (2p4w) 19175 | -5/Hub_04(d) | Network Hub disabled 19181 | -5/Hub_04(d) | Destroyed Lightning 19207 | -5/Hub_04(d) | Found Prototype Processor 19219 | -5/Hub_04(d) | Discovered exit to Factory (range 13) 19258 | -5/Hub_04(d) | Entered Factory 19258 | -4/Factory | Evolved 2 slots: Propulsion x1, Weapon x1 19262 | -4/Factory | X0-1V1 vaporized surrounding terrain (radius 16) 19417 | -4/Factory | Identified exit to Research 19417 | -4/Factory | X0-1V1 revealed exit location to -3/Research 19480 | -4/Factory | X0-1V1 activates XOMVISION 19578 | -4/Factory | X0-1V1 sent you to a vault 19598 | -4/Factory | Identified exit to Upper Caves 19598 | -4/Factory | X0-1V1 revealed exit location to -4/Upper Caves 19623 | -4/Factory | Spotted B-86 Titan 19644 | -4/Factory | Allies destroyed B-86 Titan 19793 | -4/Factory | X0-1V1 sent allied C-35 Carver (x2) 19795 | -4/Factory | P-70 Sage assimilated allied C-35 Carver 19807 | -4/Factory | X0-1V1 upgraded hostiles (x2) 19807 | -4/Factory | Identified Exp. Targeting Computer 19829 | -4/Factory | Garrison activated, responded to threat 19852 | -4/Factory | Lost 3 parts (1n1u1w) 19961 | -4/Factory | X0-1V1 added 0b10 threat records associated with you (considerable) 20008 | -4/Factory | First assault squad dispatched 20117 | -4/Factory | X0-1V1 added 0b10 threat records associated with you (minor) 20286 | -4/Factory | X0-1V1 redirected Transport squads to designated parking area 20332 | -4/Factory | X0-1V1 activates XOMVISION 20383 | -4/Factory | Entered Upper Caves 20476 | -4/Upper Caves | X0-1V1 mutated your Propulsion slot to Weapon slot 20797 | -4/Upper Caves | Discovered new exit (range 5) 20807 | -4/Upper Caves | Entered another Upper Caves area 20815 | -4/Upper Caves | Encountered a Warlord checkpoint 21038 | -4/Upper Caves | X0-1V1 revealed exit location to -3/Research 21050 | -4/Upper Caves | X0-1V1 sent you into danger 21051 | -4/Upper Caves | Attracted the attention of an 0b10 checkpoint 21059 | -4/Upper Caves | X0-1V1 upgraded hostiles (x2) 21078 | -4/Upper Caves | X0-1V1 sent allied Striker (x1) 21093 | -4/Upper Caves | Spotted B-86 Titan 21101 | -4/Upper Caves | Allies destroyed B-86 Titan 21113 | -4/Upper Caves | Learned Research stockpile data 21157 | -4/Upper Caves | X0-1V1 activates XOMVISION 21207 | -4/Upper Caves | Discovered new exit (range 15) 21223 | -4/Upper Caves | Entered Zhirov 21223 | -4/Zhirov | Accompanied by 1 ally 21223 | -4/Zhirov | Discovered new exit (range 3) 21245 | -4/Zhirov | Met Zhirov 21282 | -4/Zhirov | Zhirov requested help retrieving the SGEMP Prototype 21299 | -4/Zhirov | Found Alien Artifact 21299 | -4/Zhirov | Identified Integrated Reactor 21299 | -4/Zhirov | Installed Integrated Reactor, increased core energy generation (+10) 21316 | -4/Zhirov | Found Alien Artifact 21358 | -4/Zhirov | Attached CPS modules to Q418-d 21512 | -4/Zhirov | Cloak Generator disabled 21512 | -4/Zhirov | Attacked by Zhirov 21522 | -4/Zhirov | Enhanced Grunts warped into view 21550 | -4/Zhirov | Zhirov detonated his lab 21601 | -4/Zhirov | Entered Proximity Caves 21754 | -3/Proximity Caves | Build established: Hauler-Executioner 21945 | -3/Proximity Caves | Attracted the attention of an 0b10 base 21945 | -3/Proximity Caves | Spotter reported a threat 21956 | -3/Proximity Caves | X0-1V1 sent allied Executioner (x1) 21993 | -3/Proximity Caves | X0-1V1 activates XOMVISION 22002 | -3/Proximity Caves | Spotter reported a threat 22011 | -3/Proximity Caves | Lost 4 parts (1u3w) 22013 | -3/Proximity Caves | Spotter reported a threat 22021 | -3/Proximity Caves | Identified Storm Laser 22097 | -3/Proximity Caves | X0-1V1 vaporized surrounding terrain (radius 19) 22216 | -3/Proximity Caves | Discovered exit to Research (range 12) 22264 | -3/Proximity Caves | Entered Research 22264 | -3/Research | Evolved 2 slots: Power x1, Propulsion x1 22267 | -3/Research | Loaded intel: 46 interactive machine locations 22313 | -3/Research | Weapon slot count temporarily expanded by X0-1V1 (+2) 22338 | -3/Research | Build established: Executioner 22464 | -3/Research | Revision forces began assault on 0b10 22507 | -3/Research | Met up with Revision 17++ 22593 | -3/Research | Allied Derelicts emerged from ambush trap array 22686 | -3/Research | Discovered new exit (range 16) 22880 | -3/Research | Lost 5 allies 22964 | -3/Research | Research terminal network offline 23361 | -3/Research | Identified exit to Research 23467 | -3/Research | X0-1V1 announced a LAN party 23477 | -3/Research | Spotted Striker 23494 | -3/Research | Destroyed Striker 23618 | -3/Research | X0-1V1 vaporized surrounding terrain (radius 19) 23781 | -3/Research | Spotted Striker 24146 | -3/Research | Allied Derelicts emerged from ambush trap array 24205 | -3/Research | Spotted Executioner 24205 | -3/Research | Spotted Striker 24210 | -3/Research | Destroyed Striker 24218 | -3/Research | Destroyed Executioner 24228 | -3/Research | Found Prototype Device 24230 | -3/Research | Identified Adv. Kinecellerator 24234 | -3/Research | Found Prototype Processor 24234 | -3/Research | Identified Exp. Core Analyzer 24263 | -3/Research | Spotted Striker 24265 | -3/Research | Spotted Striker 24269 | -3/Research | Destroyed Striker 24279 | -3/Research | Destroyed Striker 24318 | -3/Research | X0-1V1 sent you into danger 24345 | -3/Research | Found Exp. Core Analyzer 24522 | -3/Research | Spotted Striker 24538 | -3/Research | Destroyed Striker 24604 | -3/Research | Discovered new exit (range 11) 24820 | -3/Research | Spotted B-86 Titan 24824 | -3/Research | Destroyed B-86 Titan 24867 | -3/Research | Spotted Striker 24878 | -3/Research | X0-1V1 downgraded hostiles (x1) 24920 | -3/Research | Lost 5 parts (1n4w) 24923 | -3/Research | Destroyed Striker 24969 | -3/Research | Discovered new exit (range 13) 25254 | -3/Research | Spotted Executioner 25254 | -3/Research | Spotted Striker 25262 | -3/Research | Destroyed Executioner 25266 | -3/Research | Spotted Striker 25269 | -3/Research | Destroyed Striker 25280 | -3/Research | Destroyed Striker 25323 | -3/Research | Lost 5 parts (3p2n) 25349 | -3/Research | Spotted Striker 25365 | -3/Research | Destroyed Striker 25420 | -3/Research | Spotted Striker 25428 | -3/Research | X0-1V1 sent allied Butcher (x2) 25429 | -3/Research | Destroyed Striker 25492 | -3/Research | Spotted Striker 25513 | -3/Research | Spotted Striker 25524 | -3/Research | Destroyed Striker 25539 | -3/Research | Identified Transdimensional Reconstructor 25539 | -3/Research | Warped through subspace 25545 | -3/Research | Spotted Striker 25593 | -3/Research | Spotted Executioner 25593 | -3/Research | Spotted Striker 25608 | -3/Research | Lost 16 parts (2p6n8w) 25630 | -3/Research | X0-1V1 sent you to a vault 25631 | -3/Research | Found Prototype Launcher 25631 | -3/Research | Identified Containment Facilitator 25634 | -3/Research | Found Prototype Device 25634 | -3/Research | Identified Femtoactuators 25636 | -3/Research | Found Prototype Device 25636 | -3/Research | Identified Exp. Focal Shield 25646 | -3/Research | Found Prototype Device 25646 | -3/Research | Identified Exp. Actuator Array 25717 | -3/Research | Core integrity fell below 50% 25763 | -3/Research | Spotted Executioner 25773 | -3/Research | Destroyed Executioner 25791 | -3/Research | Entered Quarantine 25802 | -3/Quarantine | X0-1V1 revealed exit location to -2/Research 25883 | -3/Quarantine | Build established: Scavenger-Sprinter 25907 | -3/Quarantine | Core integrity restored by X0-1V1 (+378) 25933 | -3/Quarantine | X0-1V1 activates XOMVISION 25977 | -3/Quarantine | Found Gamma Bomb Array 26537 | -3/Quarantine | Build established: Hauler-Executioner 26538 | -3/Quarantine | Core integrity restored by X0-1V1 (+266) 26570 | -3/Quarantine | Found Alien Artifact 26570 | -3/Quarantine | Identified Dimensional Node Initializer 26570 | -3/Quarantine | Initialized slip node 26571 | -3/Quarantine | X0-1V1 vaporized surrounding terrain (radius 17) 26574 | -3/Quarantine | Found Dimensional Node Initializer 26587 | -3/Quarantine | Found Transdimensional Reconstructor 26592 | -3/Quarantine | Found Transdimensional Reconstructor 26595 | -3/Quarantine | Found Transdimensional Reconstructor 26598 | -3/Quarantine | Found Alien Artifact 26693 | -3/Quarantine | Found Alien Artifact 26700 | -3/Quarantine | X0-1V1 opened Sealed Heavy Doors 26775 | -3/Quarantine | Found Prototype Hackware 26792 | -3/Quarantine | Identified Exp. System Shield 27161 | -3/Quarantine | X0-1V1 activates XOMVISION 27172 | -3/Quarantine | Found Alien Slashing Weapon 27172 | -3/Quarantine | Identified Sigix Broadsword 27291 | -3/Quarantine | First assault squad dispatched 27375 | -3/Quarantine | Garrison activated, responded to threat 27458 | -3/Quarantine | Entered Research 27458 | -2/Research | Evolved 2 slots: Propulsion x1, Weapon x1 27479 | -2/Research | Build established: Hauler-Gunner 27491 | -2/Research | X0-1V1 released a cloud of subatomizers 27514 | -2/Research | Identified exit to Access 27514 | -2/Research | X0-1V1 revealed exit location to -1/Access 27624 | -2/Research | Identified exit to Testing 27659 | -2/Research | X0-1V1 sent you to a vault 27701 | -2/Research | Found Exp. EM Shield 27714 | -2/Research | X0-1V1 activates XOMVISION 27728 | -2/Research | Entered Testing 27728 | -2/Testing | Accompanied by 4 allies 27753 | -2/Testing | Found Exp. Core Analyzer 27847 | -2/Testing | Build established: Hauler-Executioner 27849 | -2/Testing | X0-1V1 revealed exit location to -1/Access 27892 | -2/Testing | X0-1V1 added 0b10 threat records associated with you (minor) 28103 | -2/Testing | X0-1V1 sent you to a vault 28212 | -2/Testing | P-80 Master assimilated allied Terminator 9b 28216 | -2/Testing | P-80 Master assimilated allied Terminator 9a 28253 | -2/Testing | Spotted Striker 28272 | -2/Testing | Destroyed Striker 28428 | -2/Testing | Spotted Striker 28441 | -2/Testing | Destroyed Striker 28452 | -2/Testing | Spotted Alpha 7 28465 | -2/Testing | Destroyed Alpha 7 28471 | -2/Testing | X0-1V1 mutated your Weapon slot to Utility slot 28528 | -2/Testing | Found Prototype Energy Cannon 28528 | -2/Testing | Identified Cld. Nova Cannon 28628 | -2/Testing | Found Prototype Device 28628 | -2/Testing | Identified 2N-1CE's Frost Array 28728 | -2/Testing | First assault squad dispatched 28737 | -2/Testing | X0-1V1 enhanced Transport squad support 28754 | -2/Testing | Warped through subspace 28844 | -2/Testing | Lost 3 parts (2n1w) 29008 | -2/Testing | Found Prototype Energy Cannon 29122 | -2/Testing | Identified Null Cannon 29138 | -2/Testing | Spotted Fortress 29143 | -2/Testing | Destroyed Fortress 29299 | -2/Testing | Discovered new exit (range 6) 29299 | -2/Testing | Discovered new exit (range 7) 29311 | -2/Testing | Entered Section 7 29315 | -2/Section 7 | Identified Core Reset Matrix 29315 | -2/Section 7 | Identified Hpw. Transdimensional Reconstructor 29315 | -2/Section 7 | Used Core Reset Matrix 29319 | -2/Section 7 | Detected hypermatrix surge 29319 | -2/Section 7 | Sensed 22 artifacts in vicinity 29328 | -2/Section 7 | Spotted S7 Guard 29351 | -2/Section 7 | Found Core Membrane 29351 | -2/Section 7 | Installed Core Membrane, gained immunity to corruption 29354 | -2/Section 7 | X0-1V1 activates XOMVISION 29388 | -2/Section 7 | Spotted S7 Guard 29407 | -2/Section 7 | Spotted S7 Guard 29430 | -2/Section 7 | Destroyed S7 Guard 29467 | -2/Section 7 | Found Core Regenerator 29484 | -2/Section 7 | Warped through subspace 29532 | -2/Section 7 | Found Integrated Reactor 29569 | -2/Section 7 | Installed Integrated Reactor, increased core energy generation (+10) 29711 | -2/Section 7 | X0-1V1 sent allied Striker (x2) 29721 | -2/Section 7 | Found Core Reset Matrix 29741 | -2/Section 7 | X0-1V1 sent you to a vault 29789 | -2/Section 7 | Spotted Alpha 7 29790 | -2/Section 7 | Spotted Alpha 7 29797 | -2/Section 7 | Master 9a assimilated hostile C-65 Expert 29854 | -2/Section 7 | Lost 6 allies 29860 | -2/Section 7 | Warped through subspace 29862 | -2/Section 7 | Core integrity fell below 50% 29880 | -2/Section 7 | X0-1V1 revealed exit location to -1/Access 29890 | -2/Section 7 | Lost 5 parts (1n1u3w) 29923 | -2/Section 7 | Spotted S7 Guard 29937 | -2/Section 7 | Warped through subspace 29959 | -2/Section 7 | Lost 5 parts (1p2u2w) 29986 | -2/Section 7 | Scanned by Researcher 30017 | -2/Section 7 | Destroyed 7 combat bots 30021 | -2/Section 7 | Weapon slot count temporarily expanded by X0-1V1 (+2) 30031 | -2/Section 7 | Spotted B-90 Cyclops 30033 | -2/Section 7 | Found Chaos Jack 30035 | -2/Section 7 | Lost 3 parts (1p1u1w) 30061 | -2/Section 7 | First assault squad dispatched 30068 | -2/Section 7 | Core integrity fell below 20% 30068 | -2/Section 7 | X0-1V1 whisked you away to safety 30095 | -2/Section 7 | Lost 10 parts (2p3n5w) 30133 | -2/Section 7 | Identified exit to Garrison 30133 | -2/Section 7 | Entered Garrison 30171 | -2/Garrison | Used Core Regenerator, restored core integrity (+387) 30174 | -2/Garrison | X0-1V1 revealed exit location to -1/Access 30190 | -2/Garrison | Spotted B-90 Cyclops 30191 | -2/Garrison | Triggered checkpoint 30193 | -2/Garrison | X0-1V1 whisked you away to safety 30210 | -2/Garrison | Discovered exit to Access (range 83) 30210 | -2/Garrison | Discovered exit to Access (range 39) 30210 | -2/Garrison | Discovered exit to Access (range 32) 30221 | -2/Garrison | Triggered checkpoint 30232 | -2/Garrison | Entered Access 30232 | -1/Access | Evolved 2 slots: Weapon x2 30300 | -1/Access | X0-1V1 sent you to a vault 30333 | -1/Access | Found Prototype Energy Cannon 30333 | -1/Access | Identified YOLO Cannon 30361 | -1/Access | Found Femtoactuators 30454 | -1/Access | Discovered new exit (range 9) 30457 | -1/Access | X0-1V1 destroyed Energy Cycler 30457 | -1/Access | Energy Cycler disabled 30482 | -1/Access | First assault squad dispatched 30484 | -1/Access | Found Vortex Chain Reactor 30509 | -1/Access | Build established: Alien-Mutant 30536 | -1/Access | X0-1V1 whisked you away to safety 30593 | -1/Access | Identified exit to Surface 30593 | -1/Access | X0-1V1 revealed exit location to -0/Surface 30610 | -1/Access | Spotted B-99 Colossus 30627 | -1/Access | Destroyed B-99 Colossus 30674 | -1/Access | Lost 3 parts (1n2w) 30807 | -1/Access | X0-1V1 activates XOMVISION 30827 | -1/Access | Intercept squad dispatched 30828 | -1/Access | Spotted B-99 Colossus 30829 | -1/Access | Spotted B-99 Colossus 30832 | -1/Access | Entered Command 30834 | -1/Command | Build established: Alien-Executioner 31036 | -1/Command | X0-1V1 mutated your Utility slot to Propulsion slot 31162 | -1/Command | Spotted M Guard 31163 | -1/Command | Spotted Combat Programmer 31164 | -1/Command | Spotted Combat Programmer 31195 | -1/Command | X0-1V1 sent allied H-77 Assassin (x4) 31207 | -1/Command | Lost 7 parts (1n2u4w) 31222 | -1/Command | Spotted Alpha 7 31222 | -1/Command | Spotted Alpha 7 31222 | -1/Command | Spotted Striker 31222 | -1/Command | Spotted Striker 31222 | -1/Command | Spotted Executioner 31222 | -1/Command | Spotted Executioner 31222 | -1/Command | Spotted Executioner 31222 | -1/Command | Spotted Executioner 31224 | -1/Command | Spotted B-99 Colossus 31226 | -1/Command | Spotted B-99 Colossus 31232 | -1/Command | Core integrity fell below 50% 31233 | -1/Command | Lost 3 allies 31234 | -1/Command | Emitted hypermatrix ping 31237 | -1/Command | Core integrity fell below 20% 31237 | -1/Command | Discovered exit to Surface (range 8) 31239 | -1/Command | Assembled emerged from beneath the floor 31242 | *** | Heading to fleet! Last Messages --------------- 31239_ Slug penetrates Wall. 31239_ Field strength at 17. 31240_ Field strength at 39. 31240_ P-80 Master resets Executioner, system corruption cleaned. 31240_ Field strength at 10. 31241_ Field strength at 31. 31241_ as-32207 destroyed. 31241_ Slug penetrates as-53659. 31241_ as-53659 destroyed. 31241_ Slug penetrates Executioner. 31241_ Slug penetrates B-99 Colossus. 31241_ Slug penetrates as-44901. 31241_ Slug penetrates Wall. 31241_ P-80 Master resets Combat Programmer, system corruption cleaned. 31241_ Field strength at 3. 31241_ as-44901 triggered Stasis Trap. 31241_ A bubble of rippling energy engulfs the area. 31241_ Field strength at 93. 31242_ Field strength at 23. 31242_ P-80 Master resets Executioner, system corruption cleaned. Map ----- +----------------------------------------------------+ | ?????????????????????????????????????????????????? | | ?????????????????????????????????????????????????? | | ?????????????????????????????????????????????????? | | ?????????????????????????????????????????????????? | | ?????????????????????????????????????????????????? | | ?????????????????????????????????????????????????? | | ?????????????????????????????????????????????????? | | ?????????????????????????????????????????????????? | | ?????????????????????????????????????????????????? | | ?????????????????????????????????????????????????? | | ???]?????????????????????????????????????????????? | | ?????????????????????????????????????????????????? | | ?????????????????????????????????????????????????? | | ?T???????????????????????????????????????????????? | | " ???????H???????????????????????????????????????? | | ???????????????????????????????????????????????? | | ???????????????????????????????????????????????? | | ???????????????????????????????????????????????? | | ???????????????????????????????????????????????? | | ????????????????##############?????????????????? | | #???????????????# #?????????????????? | | #???????######### #?????????????????? | | #?????### # # # # #?????????????????? | | #???### ^7 BB #?????????????????? | | #???# " ! ! ^ BB #?????????????????? | | #???# % ! =^E ^ "@ #?????????????????? | | ##### "^^7E! K "" #?????????????????? | | /%=%E%! ^BB #?????????????????? | | #######!^pp%%%aBB #?????????????????? | | #?????###=#a% a # #?????????????????? | | #???????##;;##### #?????????????????? | | #????????###????# #?????????????????? | | #???????????????#########;####?????????????????? | | #????????????????????????##????????????????????? | | #?????????###########??????????????????????????? | | #?????????# "" ??????????????????????????? | | #?????????# """" ??????????????????????????? | | ########### """" #???????????????????????? | | # "" #???????????????????????? | | + #???????????????????????? | | "########## # #???????????????????????? | | # # #???????????????????????? | | / # #???????????????????????? | | "" # # #???????????????????????? | | """" # # "???????????????????????? | | """" # # #???????????????????????? | | "" # # #???????????????????????? | | # ################# #??????????????????? | | # ! + ???????????????? | | ############# ##### #??????????????????? | +----------------------------------------------------+ Best States ------------- Heat Dissipation 159 Coolant Potential 220 Energy Generation 110 Energy Capacity 2400 Matter Stores 1000 Matter Capacity 1100 Sight Range 22 Robot Scan Range 20 Terrain Scan Range 18 Terrain Scan Density 10 Armor Coverage 600 Resistance: KI 26 Resistance: TH 44 Resistance: EM 95 Core Shielding 20 Weapon Shielding 90 Weapon Cycling 15 Melee Speed Boost 50 Evasion (%) 79 Targeting Accuracy 12 Core Analysis 8 Recoil Reduction 6 Particle Charging 50 Kinecelleration 50 Offensive Hacking 10 Defensive Hacking 16 Item Schematics ----------------- Exp. EM Disruption Field | -2/Section 7 | Archive Imp. Matter Neutralizer | -2/Section 7 | Archive Exp. Melee Analysis Suite | -2/Section 7 | Archive Robot Schematics ------------------ A-15 Conveyor | -2/Section 7 | Archive Fabricated ------------ Nothing Repaired ---------- Nothing Studied --------- None Alien Tech Used ----------------- Core Expander Integrated Reactor Transdimensional Reconstructor Dimensional Node Initializer Sigix Broadsword Core Reset Matrix Core Membrane High-powered Transdimensional Reconstructor Core Regenerator Achievements -------------- About That Survey... Challenges ------------ None Game ------ Seed TerrabombCompanionMatterbank Manual? 0 Play Time 04:47:14 Cumulative 1289.3 hours Start 2026.06.25 @ 23:23:04 End 2026.06.26 @ 14:01:33 Sessions 9 Manual Loads 0 Difficulty Rogue Special Mode None Game No. 406 Rogue 404 Adventurer 2 Explorer 0 Win Type 2 Total 108 Types 33/25/24/2/1/1/16/2/1/3 Lore% 98 Gallery% 92 Achievement% 91 Wizard Run 0 Options --------- Layout 0 ASCII 0 Keyboard 1 Movement Numpad Keybinds 0 Fullscreen 1 Font 24/Smallcaps Map View 76x50 Zoom Use 0% Tactical HUD 1 Map Filters NONE Filters NONE Steam 1 RUN: 2430e342-affb-45b4-bb72-8e547542e903